Cogmind - Beta 16 @@@ ROGUE MODE // 2025.11.21 @ 02:19:53 Player: H3-MLN Result: Destroyed by M Guard with Ragnarok Missile Launcher Performance ------------- Evolutions (9) 4500 Regions Visited (28) 5600 Robots Destroyed (488) 2440 Value Destroyed (27379) 27379 Prototype IDs (70) 1400 Alien Tech Used (3) 600 Bonus (10999) 10999 TOTAL SCORE: 52918 Bonus ------- High Alert Combat Kills 5395 Follower Combat Kills 2248 Entered Garrisons 800 Used RIF Installer 2500 Entered DSFs 1000 Friendly Fire -944 Cogmind --------- Core Integrity 0/1600 Matter 300/300 Energy 99/100 System Corruption 89% Temperature Cool (0) Movement Core (50) Location -1/Command Parts ------- > --- POWER (2) -------- (None) > --- PROPULSION (7) --- (None) > --- UTILITY (12) ----- (None) > --- WEAPON (4) ------- (None) > --- INVENTORY (5) ---- Myomer Leg Huge Storage Unit Particle Accelerator Core Stripper Peak State ------------ > --- POWER ------------ Vortex Chain Reactor > --- PROPULSION ------- Biometal Leg Biometal Leg Centrium Leg Heavy Shield Leg Heavy Shield Leg > --- UTILITY ---------- Coolant Network Huge Storage Unit Advanced Energy Well Spectral Analyzer Long-range Sensor Array Experimental Terrain Scan Processor Centrium Heavy Armor Plating Graphene Brace Thermal Barrier Advanced Force Field > --- WEAPON ----------- Heavy Dispersion Rifle Compact Linear Accelerator Sigix Broadsword > --- INVENTORY -------- Zero-point Reactor Zero-point Reactor Zero-point Reactor Centrium Leg Heavy Shield Leg High-capacity Storage Unit Matter Compressor Advanced Particle Charger Particle Accelerator Quantum Capacitor Experimental Weapon Shielding Experimental Force Field Trap Extractor Disintegrator Enhanced Hardcell Cannon Graviton Cannon Advanced Remote Datajack Core Stripper [Rating: 241] Favorites ----------- Power Nuclear Core Engine Light Angular Momentum Engine Power Core Nuclear Core Reactor Particle Reactor Propulsion Flexi-carbon Leg Leg Flexi-carbon Leg Utility High-capacity Storage Unit Device Graphene Brace Storage High-capacity Storage Unit Processor Core Analyzer Hackware Relay Coupler [NC] Protection Hardened Heavy Armor Plating Artifact Phase Redirector Weapon Beamcaster Energy Gun Beamcaster Energy Cannon Nova Cannon Ballistic Gun Improved Assault Rifle Ballistic Cannon Compact Mass Driver Launcher Gamma Bomb Array Special Weapon Remote Datajack Impact Weapon Powered Hammer Slashing Weapon Sigix Broadsword Piercing Weapon Force Lance Special Melee Weapon Improved Datajack Build | -11 -10 -10 -10 -9 -8 -8 -8 -8 -7 -7 -7 -7 -6 -6 -6 -6 -5 -5 -4 -4 -4 -3 -3 -3 -2 -2 -1 -1 ------- Run | Yrd Mat Min Exi Min Mat Gar Mat Gar Fac Was Fac DSF Fac Was Fac Gar Fac DSF Fac Was Fac Res Qua Gar Res Tes Acc Com Slots Evolved 18 | . . . . . 4 . . . 2 . . . 2 . . . 2 . 2 . . 2 . . 2 . 2 . Power 1 | . . . . . . . . . . . . . 1 . . . . . . . . . . . . . . . Propulsion 5 | . . . . . 2 . . . 1 . . . . . . . . . 1 . . . . . . . 1 . Utility 10 | . . . . . 2 . . . 1 . . . 1 . . . 2 . 1 . . 1 . . 2 . . . Weapon 2 | . . . . . . . . . . . . . . . . . . . . . . 1 . . . . 1 . Parts Attached 390 | 6 19 4 2 5 44 5 . 24 3 3 . 7 9 2 15 26 5 4 34 1 14 18 8 7 56 15 32 22 Power 46 | 1 1 1 . . 6 . . 1 . 1 . . 2 1 2 3 1 . 3 . 2 3 . 1 9 1 2 5 Engine 6 | 1 1 1 . . 1 . . . . . . . 2 . . . . . . . . . . . . . . . Core 9 | . . . . . 5 . . 1 . . . . . . . . 1 . 2 . . . . . . . . . Reactor 31 | . . . . . . . . . . 1 . . . 1 2 3 . . 1 . 2 3 . 1 9 1 2 5 Propulsion 117 | 2 11 . 1 2 10 3 . 9 1 . . 7 1 . 4 9 . . 11 . 4 1 . . 21 1 11 8 Treads . | . . . . . . . . . . . . . . . . . . . . . . . . . . . . . Leg 117 | 2 11 . 1 2 10 3 . 9 1 . . 7 1 . 4 9 . . 11 . 4 1 . . 21 1 11 8 Wheel . | . . . . . . . . . . . . . . . . . . . . . . . . . . . . . Hover . | . . . . . . . . . . . . . . . . . . . . . . . . . . . . . Flight . | . . . . . . . . . . . . . . . . . . . . . . . . . . . . . Utility 143 | 1 4 1 1 2 18 . . 8 2 1 . . 4 1 4 10 2 4 12 1 5 9 4 4 16 11 12 6 Device 66 | . 2 . . 2 7 . . 1 1 . . . 1 . 3 1 2 1 6 . 3 5 1 1 10 8 9 2 Storage 9 | 1 2 . 1 . . . . . . . . . . . . . . . 2 . . 1 1 . 1 . . . Processor 14 | . . . . . 1 . . 1 1 . . . 2 . . . . . 2 . 1 2 . . 3 . . 1 Hackware 27 | . . . . . 2 . . 3 . 1 . . . 1 1 7 . 3 1 1 1 1 1 3 1 . . . Protection 26 | . . 1 . . 8 . . 3 . . . . 1 . . 2 . . 1 . . . . . 1 3 3 3 Artifact 1 | . . . . . . . . . . . . . . . . . . . . . . . 1 . . . . . Weapon 84 | 2 3 2 . 1 10 2 . 6 . 1 . . 2 . 5 4 2 . 8 . 3 5 4 2 10 2 7 3 Energy Gun 18 | . . 1 . . 4 . . . . . . . 1 . 2 . . . 2 . . . 1 . 2 . 3 2 Energy Cannon 12 | . . . . . . . . 1 . 1 . . 1 . 1 2 . . 2 . 1 1 . . 1 1 . . Ballistic Gun 20 | 2 3 . . 1 3 . . 4 . . . . . . 1 . 2 . 1 . . 1 . . 1 . . 1 Ballistic Cannon 12 | . . . . . . . . . . . . . . . . 1 . . 2 . 1 2 1 . 2 1 2 . Launcher 7 | . . 1 . . 1 2 . . . . . . . . . . . . 1 . . 1 . 1 . . . . Special Weapon 4 | . . . . . . . . 1 . . . . . . . 1 . . . . . . . 1 1 . . . Impact Weapon 3 | . . . . . 1 . . . . . . . . . 1 . . . . . . . 1 . . . . . Slashing Weapon 3 | . . . . . . . . . . . . . . . . . . . . . 1 . 1 . 1 . . . Piercing Weapon 4 | . . . . . . . . . . . . . . . . . . . . . . . . . 2 . 2 . Special Melee Weapon 1 | . . . . . 1 . . . . . . . . . . . . . . . . . . . . . . . Unidentified Prototypes 46 | . . . . . 3 . . . . 1 . . 1 . 6 . 2 . 4 . 2 4 3 . 9 10 . 1 Corrupted Parts 5 | . . . . . . . . . . . . 2 . . . . . . . . 1 . . . . . 1 1 System Corruption 34 | . . . . . . . . . . . . 10 . . . . . . . . 5 . . . . . 10 9 Parts Lost 156 | . 2 . . 1 16 . . 5 1 . . 1 2 . . 6 . . 18 . 2 . . . 34 3 29 36 Power 18 | . 1 . . . 3 . . . . . . . 1 . . . . . . . 1 . . . 3 . 4 5 Propulsion 57 | . . . . . 6 . . 3 1 . . 1 . . . 3 . . 10 . . . . . 11 . 11 11 Utility 54 | . 1 . . 1 5 . . 1 . . . . . . . 1 . . 6 . 1 . . . 11 3 10 14 Weapon 27 | . . . . . 2 . . 1 . . . . 1 . . 2 . . 2 . . . . . 9 . 4 6 Highest Loss Streak 21 | . 1 . . 1 4 . . 2 1 . . 1 2 . . 2 . . 4 . 2 . . . 12 1 11 21 To Critical Strikes . | . . . . . . . . . . . . . . . . . . . . . . . . . . . . . Average Backups 17 | 1 8 10 11 17 18 18 18 17 17 16 16 15 15 15 18 18 17 18 16 18 18 21 23 22 18 20 18 16 Power . | . . . . . . . . . . . . . . . . . . . . . . . . . . 2 2 1 Propulsion 2 | . 3 3 3 6 3 2 2 2 . . . . 1 2 1 1 1 1 . 1 2 1 1 2 2 3 . . Utility 7 | . 1 2 5 6 7 9 9 8 9 10 10 10 10 9 10 10 9 9 7 8 7 9 9 8 5 8 7 6 Weapon 6 | . 3 3 2 3 6 6 6 6 6 5 5 4 3 4 4 5 6 7 7 9 8 8 10 10 8 5 7 7 Tool/Special . | . . . . . . . . . . . . . . . . . . . . . . . . . . . . . Unused Backups 52 | . 6 . 1 . 7 6 . 3 1 3 . 3 1 . 3 1 . . 1 1 . 4 2 2 3 . . 4 Power 4 | . 1 . . . . . . . . . . . . . . . . . . . . 3 . . . . . . Propulsion 9 | . 2 . . . . 2 . 2 . . . . . . . . . . . . . . . . 1 . . 2 Utility 27 | . 1 . . . 3 3 . 1 1 1 . 3 1 . 3 1 . . 1 1 . 1 2 1 2 . . 1 Weapon 10 | . 2 . 1 . 3 1 . . . 2 . . . . . . . . . . . . . . . . . 1 Tool/Special 2 | . . . . . 1 . . . . . . . . . . . . . . . . . . 1 . . . . Average Slot Usage (%) 91 | . 95 100 100 97 95 90 90 96 98 100 100 99 97 96 100 99 99 100 91 84 83 84 80 80 85 80 73 70 Engine 3 | . 14 14 14 14 1 . . . . . . . 4 1 . . . . . . . . . . . . . . Core 2 | . . . . . 7 9 9 9 7 . . . . . . . 2 5 7 5 5 . . . . . . . Reactor 4 | . . . . . . . . . . 6 7 7 6 7 13 13 8 5 1 5 5 7 9 9 7 6 4 6 Leg 27 | . 27 28 28 28 35 36 36 35 38 38 38 37 33 33 33 32 29 29 26 15 15 14 13 14 20 16 18 16 Device 12 | . 10 . . 11 11 9 9 7 12 7 7 6 6 6 6 5 17 18 18 21 16 23 22 23 23 26 19 21 Storage 8 | . 14 14 14 14 9 9 9 9 7 7 7 7 6 6 6 6 5 5 5 5 5 4 4 4 6 5 8 6 Processor 8 | . . . . . 4 . . 6 8 15 15 15 20 20 20 15 11 11 16 15 19 14 14 14 13 11 8 3 Hackware 1 | . . . . . 1 . . 1 . 6 7 4 . 2 . 4 4 3 . 4 5 2 4 3 3 . . . Protection 4 | . . 13 14 . 5 9 9 9 6 . . 2 5 3 6 6 5 5 3 . . . . . . 2 2 5 Energy Gun 5 | . . 9 14 13 9 8 9 7 . . . . 4 6 4 . . . . 5 3 3 1 . 1 . 3 4 Energy Cannon 1 | . . . . . . . . . . 6 7 6 5 . . 5 1 . 1 . . 1 2 2 1 . . . Ballistic Gun 6 | . 27 18 14 14 8 2 . 7 7 . . 5 1 . 5 1 7 9 5 . . 1 1 . . . . . Impact Weapon 1 | . . . . . . 6 5 . 2 4 7 1 . . 1 2 1 . . . 1 . . . . . . . Peak Build Rating 241 | 6 8 16 19 22 42 45 45 49 55 59 59 68 78 76 83 80 94 96 131 129 137 169 183 187 203 226 241 200 Average Rating 83 | 4 7 13 17 20 34 43 44 42 53 58 59 61 73 69 78 76 89 94 107 124 126 158 167 175 171 205 203 154 On Entrance 84 | . 6 8 16 19 21 39 45 44 47 53 59 59 68 72 75 79 78 94 95 129 125 134 160 177 174 203 225 143 Avg Prop Armor Cover (%) 2 | . . . . . . . . . 3 3 . 3 . . . . . . 2 . . 3 . . 2 . . . Naked Turns 3 | . . . . . . . . . . . . . . . . . . . . . . . . . . . . 3 Heaviest Build 188 | 12 19 29 59 59 75 80 80 84 69 65 65 76 80 84 97 100 85 85 100 80 84 150 148 149 168 188 184 154 Greatest Support 206 | 20 20 20 20 20 71 63 63 72 84 67 67 98 98 95 96 91 85 85 130 130 145 150 150 150 194 194 206 198 Greatest Overweight (x) 3 | . 1 1 2 2 1 1 1 1 . . . 1 . . 1 1 . . 2 . . 1 2 . 1 1 2 3 Average Overweight (x) . | . . . 1 2 . 1 1 . . . . . . . . . . . . . . . . . . . . . Largest Inventory Capacity 25 | 8 10 10 20 20 20 20 20 20 20 20 20 20 20 20 20 20 20 20 20 20 20 25 25 25 25 25 25 20 Average Capacity 19 | 7 9 10 14 20 20 20 20 20 20 20 20 20 20 20 20 20 20 20 20 20 20 23 25 25 23 25 23 19 Most Carried 25 | 3 10 10 16 20 20 20 20 20 20 20 20 20 20 20 20 20 20 20 20 20 20 25 25 25 25 25 25 20 Average Carried 19 | 1 8 9 11 18 19 19 20 19 19 19 20 19 19 19 19 19 19 20 18 19 19 22 24 24 21 24 21 18 Final Capacity 25 | 8 10 10 20 20 20 20 20 20 20 20 20 20 20 20 20 20 20 20 20 20 20 25 25 25 25 25 20 5 Final Carried 25 | 3 10 10 16 20 20 20 20 20 20 20 20 20 20 20 20 20 20 20 19 20 20 23 25 25 25 24 20 5 Class Distribution -------------------- 57% | Scavenger-Mutant 19% | Mutant 4% | Assassin Dominant Class ---------------- Mutant | -10/Materials Scavenger-Mutant | -10/Mines Scavenger-Mutant | -10/Exiles Scavenger-Mutant | -9/Mines Scavenger-Mutant | -8/Materials Scavenger-Mutant | -8/Garrison Scavenger-Mutant | -8/Materials Mutant | -8/Garrison Scavenger-Mutant | -7/Factory Mutant | -7/Waste Mutant | -7/Factory Scavenger-Mutant | -7/DSF Scavenger-Mutant | -6/Factory Scavenger-Mutant | -6/Waste Scavenger-Mutant | -6/Factory Scavenger-Mutant | -6/Garrison Bothacker-Mutant | -5/Factory Scavenger-Mutant | -5/DSF Scavenger-Mutant | -4/Factory Scavenger-Mutant | -4/Waste Scavenger-Assassin | -4/Factory Skirmisher | -3/Research Assassin | -3/Quarantine Mutant | -3/Garrison Assassin | -2/Research Gladiator | -2/Testing Mutant | -1/Access Scavenger-Mutant | -1/Command Resources | -11 -10 -10 -10 -9 -8 -8 -8 -8 -7 -7 -7 -7 -6 -6 -6 -6 -5 -5 -4 -4 -4 -3 -3 -3 -2 -2 -1 -1 ----------- Run | Yrd Mat Min Exi Min Mat Gar Mat Gar Fac Was Fac DSF Fac Was Fac Gar Fac DSF Fac Was Fac Res Qua Gar Res Tes Acc Com Matter Collected 15585 | 272 663 86 54 307 1425 408 . 869 . 200 . 268 181 101 423 1455 . 218 1632 . 593 1009 575 439 2015 492 992 908 Remotely . | . . . . . . . . . . . . . . . . . . . . . . . . . . . . . Salvage Created 27447 | 75 790 65 54 236 2286 1016 . 1324 . 110 . 493 670 . 725 1228 . 87 2750 . 549 1543 995 1025 6195 1097 2804 1330 Parts 1180 | 7 61 10 2 14 111 41 . 69 . 1 . 28 20 . 20 58 . 4 102 . 15 86 71 43 197 32 132 56 Haulers Intercepted 12 | . 1 . . . 6 . . . . . . . . . 2 . . . 1 . . 1 . . 1 . . . Recyclers Shooed 27 | 1 1 . . . . . . . . . . . 1 . . . . . 1 . 2 2 . . 13 . 1 5 Parts Field Recycled 8 | . . . . . . . . . . . . . . . . . . . . . . 7 . . 1 . . . Retrieved Matter 277 | . . . . . . . . . . . . . . . . . . . . . . 259 . . 18 . . . Parts Self-Destructed . | . . . . . . . . . . . . . . . . . . . . . . . . . . . . . Prevented . | . . . . . . . . . . . . . . . . . . . . . . . . . . . . . Parts Restored . | . . . . . . . . . . . . . . . . . . . . . . . . . . . . . Kills | -11 -10 -10 -10 -9 -8 -8 -8 -8 -7 -7 -7 -7 -6 -6 -6 -6 -5 -5 -4 -4 -4 -3 -3 -3 -2 -2 -1 -1 ------- Run | Yrd Mat Min Exi Min Mat Gar Mat Gar Fac Was Fac DSF Fac Was Fac Gar Fac DSF Fac Was Fac Res Qua Gar Res Tes Acc Com Combat Hostiles Destroyed 379 | . 20 6 . 15 37 14 . 29 . . . 6 6 . 8 28 . 1 38 . 6 15 9 17 67 10 37 10 Melee 49 | . . . . . . . . . . . . . . . . . . . . . . . 4 3 19 4 19 . Guns 150 | . 20 . . 4 37 9 . 17 . . . 4 2 . 7 7 . 1 11 . 2 7 . 1 13 . 4 4 Cannons 72 | . . . . . . . . . . . . 1 1 . 1 17 . . 5 . 4 7 5 4 14 3 7 3 AOE 76 | . . 6 . 11 . 4 . 12 . . . . 1 . . 3 . . 19 . . . . 4 13 . 2 1 Classes Destroyed 22 | 2 7 1 . 1 5 1 . 2 . 1 . . . . . 1 . . . . . . . . . 1 . . Worker 13 | . 1 . . . 4 . . . . . . . 2 . 1 . . . . . . . 1 . 3 . 1 . Builder 12 | . 1 . . . . . . . . . . . 1 . . . . . 7 . . . . . 1 . 2 . Tunneler 4 | 1 . . . 3 . . . . . . . . . . . . . . . . . . . . . . . . Hauler 12 | . 1 . . . 6 . . . . . . . . . 2 . . . 1 . . 1 . . 1 . . . Recycler 30 | 1 2 . . . 2 . . . . . . . 1 . . . . . 3 . 2 2 1 . 12 2 . 2 Mechanic 4 | . . 1 . . . . . . . . . . . . . . . . 1 . . . . . 1 1 . . Operator 10 | . 1 . . . 2 . . . . . . . . . . . . . . . . 1 3 . 2 . 1 . Watcher 27 | . 1 . . . 4 4 . . . . . . 3 . 1 . . . 3 . . 1 3 . 2 1 4 . Swarmer 62 | . 12 6 . 6 4 1 . 8 . . . . . . . 3 . . 1 . . . . 4 13 . 4 . Cutter 5 | . . . . . . . . . . . . . . . . 4 . 1 . . . . . . . . . . Grunt 145 | . 8 . . 2 19 8 . 9 . . . . . . 7 12 . . 27 . . 5 . 4 23 2 16 3 Brawler 5 | . . . . . 1 . . . . . . . . . . . . . . . . . . . 2 1 . 1 Duelist 4 | . . . . . 1 . . . . . . . . . . . . . . . . . . . 3 . . . Sentry 40 | . . . . . 9 4 . 8 . . . . 3 . . 5 . . 3 . 1 2 1 . 3 . 1 . Specialist 12 | . . . . . 2 . . . . . . 4 . . . 1 . . . . 1 . . 2 2 . . . Hunter 29 | . . . . . . 1 . . . . . 1 2 . . 1 . . 3 . 2 . . 4 9 2 4 . Programmer 66 | . . . . . . . . 3 . . . 1 1 . 1 2 . . 5 . 2 8 8 2 12 4 12 5 Heavy 1 | . . . . . 1 . . . . . . . . . . . . . . . . . . . . . . . Behemoth 3 | . . . . . . . . 1 . . . . . . . . . . . . . . . 1 . . . 1 Fortress 1 | . . . . . . . . . . . . . . . . . . . . . . . . . . 1 . . Assembled 8 | . . . . 8 . . . . . . . . . . . . . . . . . . . . . . . . Thug 1 | . . . . . . 1 . . . . . . . . . . . . . . . . . . . . . . Martyr 2 | . . . . . . . . . . 2 . . . . . . . . . . . . . . . . . . Best Kill Streak 17 | 2 6 3 . 6 6 3 . 9 . . . 2 5 . 3 6 . 1 13 . 3 7 3 6 17 4 7 5 Combat Bots Only 13 | . 6 3 . 6 3 3 . 9 . . . 2 3 . 3 6 . 1 8 . 3 7 3 6 13 3 7 4 Max Kills in Single Turn 6 | 1 2 3 . 4 1 1 . 4 . 1 . 1 3 . 2 2 . 1 6 . 1 2 1 4 3 1 2 2 Gunslinging 1 | . 1 . . . . . . 1 . . . . . . 1 . . . . . . . . . . . . . Exploded 5 | . . 3 . 3 . 1 . 4 . . . . 1 . . 2 . . 5 . . . . 4 2 . 2 1 Melee 1 | . . . . . . . . . . . . . . . . . . . . . . . 1 1 1 1 1 . Uniques/NPCs Destroyed . | . . . . . . . . . . . . . . . . . . . . . . . . . . . . . Combat | -11 -10 -10 -10 -9 -8 -8 -8 -8 -7 -7 -7 -7 -6 -6 -6 -6 -5 -5 -4 -4 -4 -3 -3 -3 -2 -2 -1 -1 -------- Run | Yrd Mat Min Exi Min Mat Gar Mat Gar Fac Was Fac DSF Fac Was Fac Gar Fac DSF Fac Was Fac Res Qua Gar Res Tes Acc Com Hostile Shots Fired 3385 | . 79 11 . 34 223 32 . 130 . . . 31 123 . 26 291 . 10 241 . 159 61 49 133 686 242 559 265 Missed 1002 | . 20 4 . 10 60 16 . 39 . . . 5 41 . 8 100 . 6 83 . 55 29 14 54 210 63 123 62 Deflected 12 | . . . . . . . . . . . . . . . . . . . . . . . . . . 7 5 . Hits 2383 | . 59 7 . 24 163 16 . 91 . . . 26 82 . 18 191 . 4 158 . 104 32 35 79 476 179 436 203 Melee 25 | . . . . . . . . . . . . . . . . 2 . . . . . . . . 16 7 . . Projectile 2358 | . 59 7 . 24 163 16 . 91 . . . 26 82 . 18 189 . 4 158 . 104 32 35 79 460 172 436 203 AOE 19 | . . . . . . . . . . . . . . . . . . 1 . . . . . . . 2 . 16 Critical Strikes 116 | . . 1 . 1 10 1 . 5 . . . 1 3 . . 6 . . 6 . 2 6 2 1 17 15 16 23 Actively Blocked 76 | . . . . . . . . . . . . . . . . . . . 3 . 1 1 2 1 17 15 16 20 Part Disruptions 15 | . . . . . . . . . . . . . . . . 4 . . 1 . . . 1 . 4 2 1 2 Damage Taken 44160 | . 577 79 . 286 2455 294 . 1500 238 33 . 548 846 . 459 2201 . 112 3377 . 1464 735 824 1165 10806 2525 7511 6125 Core 4582 | . 138 . . 65 277 45 . 171 . 11 . 59 55 . 133 147 . . 336 . 197 . 46 110 983 188 502 1119 Absorbed by Shields 4815 | . . . . 35 12 . . . . . . . . . . 47 . . . . . . . 135 1274 1360 1875 77 Redirected to Core 38 | . . . . . . . . . . . . . . . . . . . . . . . . 38 . . . . Redirected to Shielding 245 | . . . . . . . . . . . . . . . . . . . . . . . . . . . 116 129 Ignored by Resistances 1545 | . . . . . . . . . . . . . . . . . . . . . . . . . . 680 291 574 Regen/Repaired (Parts) 5631 | . 29 . . . 76 . . 248 76 70 . 90 473 . 140 . . . 112 . . 317 520 685 1133 536 1126 . Core Remaining (%) 59 | 100 . . . 18 . . . 10 . . . 90 . . . 60 . 100 . . 53 . . 88 . 19 . . Volleys Fired 1493 | 6 78 16 2 30 196 66 . 111 2 11 . 23 36 20 31 121 . 11 127 6 30 74 73 60 123 29 112 99 Largest 4 | 2 2 2 2 2 2 2 . 2 1 1 . 2 2 1 2 2 . 2 2 1 2 3 3 3 3 1 4 3 Hottest 328 | 40 40 95 95 98 138 114 . 98 5 5 . 120 193 80 113 148 . 60 143 10 132 288 175 150 216 200 328 204 Shots Fired 2444 | 12 156 27 4 50 389 123 . 177 2 11 . 37 48 21 52 177 . 15 198 6 58 131 93 78 258 27 174 120 Gun 1616 | 12 156 22 4 40 389 118 . 158 . . . 17 16 11 43 57 . 12 120 . 28 48 41 9 120 . 118 77 Cannon 681 | . . . . . . . . 5 . . . 20 31 . 9 104 . . 56 . 30 64 52 66 119 27 55 43 Launcher 69 | . . 5 . 10 . 5 . 8 . . . . . . . 2 . . 14 . . 9 . 1 15 . . . Special 78 | . . . . . . . . 6 2 11 . . 1 10 . 14 . 3 8 6 . 10 . 2 4 . 1 . Kinetic 1196 | 12 156 12 2 20 225 56 . 69 . . . 17 . . 22 60 . 12 137 . 30 40 22 33 162 22 55 32 Thermal 945 | . . 10 2 20 164 62 . 94 . . . 6 32 11 30 101 . . 31 . 28 65 71 26 66 5 55 66 Explosive 52 | . . 5 . 10 . 5 . 8 . . . . . . . 2 . . 14 . . . . 1 7 . . . Electromagnetic 173 | . . . . . . . . . . . . 14 15 . . . . . 8 . . 16 . 16 19 . 63 22 Robot Hit Streak 27 | 4 9 3 1 15 23 23 . 27 1 2 . 8 12 17 12 21 . 2 13 7 7 9 18 21 15 12 6 9 Robot Miss Streak 7 | 2 3 4 5 3 5 2 . 4 1 3 . 4 2 2 3 7 . 2 5 . 3 4 5 7 4 2 5 7 Penetration Max 2 | . . . . . . . . . . . . 1 . . . . . . 1 . . . 1 1 2 2 . 1 Secondary Targets 17 | . 3 . . 1 4 . . 2 . . . . . . 2 2 . . 3 . . . . . . . . . Max Gunslinging Chain 1 | . 1 . . 1 1 . . 1 . . . . . . 1 1 . . 1 . . . . . . . . . Capacitor 107 | . . . . . . . . . . . . . . . . . . . . . . . . . . . 39 68 Autonomous 51 | . . . . . . . . 7 . . . . . . . . . . . . . . . . 44 . . . Shots Hit Robots 1651 | 7 102 8 2 27 271 85 . 97 1 9 . 23 36 16 44 100 . 5 116 6 40 66 51 51 230 44 151 63 Core Hits 904 | 4 49 8 2 21 105 39 . 55 . . . 8 22 13 37 57 . 1 100 . 16 30 23 22 181 15 64 32 Critical Kills 34 | . . . . . . . . . . . . . . . . 2 . . 7 . . 7 4 4 3 2 3 2 Critical Parts Destroyed 45 | . 1 . . . 1 1 . 1 . 1 . . . . . . . . 6 . 4 5 4 11 9 . 1 . Critical Strikes 136 | . 1 . . 3 10 2 . 6 . 1 . . 1 . . 3 . . 18 . 7 13 10 16 18 8 13 6 Burn 21 | . . . . 3 9 1 . 5 . . . . . . . . . . . . . . . . . . 1 2 Meltdown 9 | . . . . . . . . . . . . . . . . 1 . . 2 . . . . 1 1 2 . 2 Destroy 69 | . 1 . . . 1 . . 1 . . . . . . . 1 . . 11 . 5 12 8 14 11 . 4 . Blast 19 | . . . . . . . . . . . . . . . . 1 . . 5 . 2 1 2 1 1 2 2 2 Corrupt 2 | . . . . . . . . . . . . . 1 . . . . . . . . . . . . . 1 . Smash 2 | . . . . . . 1 . . . 1 . . . . . . . . . . . . . . . . . . Sever 10 | . . . . . . . . . . . . . . . . . . . . . . . . . 3 3 4 . Impale 4 | . . . . . . . . . . . . . . . . . . . . . . . . . 2 1 1 . Melee Attacks 422 | . . . . . 1 81 . 25 4 4 . 1 . . 5 20 . . 4 . 5 5 14 13 85 39 99 17 Kinetic 10 | . . . . . . . . . . . . . . . . . . . . . . . . . 5 5 . . Impact 145 | . . . . . 1 81 . 21 4 4 . 1 . . 5 20 . . 4 . 4 . . . . . . . Slashing 213 | . . . . . . . . . . . . . . . . . . . . . 1 5 14 13 73 28 79 . Piercing 50 | . . . . . . . . . . . . . . . . . . . . . . . . . 7 6 20 17 Sneak Attacks 27 | . . . . . . 4 . 4 . 4 . . . . 2 . . . . . 2 . 1 . 8 2 . . Combat Hostiles 2 | . . . . . . . . . . . . . . . . . . . . . . . 1 . 1 . . . Follow-up Attacks 6 | . . . . . . . . . . . . . . . . . . . . . . . . . . . 6 . Damage Inflicted 65559 | 63 967 505 30 1317 4519 2313 . 2953 . 231 . 716 1409 264 1340 3466 . 156 8357 8 1350 2028 1976 2377 15807 2784 8087 2536 Guns 23269 | 63 963 164 30 490 4516 1304 . 1837 . . . 303 386 264 944 916 . 156 2951 . 474 775 526 59 3078 . 2073 997 Cannons 16143 | . . . . . . . . . . . . 413 731 . 121 2321 . . 1639 . 698 1220 715 1439 3325 869 1659 993 Explosions 13175 | . . 341 . 827 . 544 . 1116 . . . . 232 . . 227 . . 3677 . . 33 . 426 4800 57 677 218 Melee 12745 | . . . . . . 465 . . . 231 . . . . 275 . . . . . 178 . 735 453 4546 1858 3678 326 Ramming 227 | . 4 . . . 3 . . . . . . . 60 . . 2 . . 90 8 . . . . 58 . . 2 Kinetic 21130 | 63 963 60 30 192 2273 439 . 878 . . . 303 . . 393 1275 . 156 3672 . 698 623 330 566 4550 965 1659 1042 Thermal 16806 | . . 104 . 298 2243 865 . 959 . . . 169 937 264 672 1962 . . 1701 . 474 1230 911 353 1715 47 1087 815 Explosive 9323 | . . 341 . 827 . 544 . 1116 . . . . . . . 227 . . 2650 . . . . 426 2618 . 574 . Electromagnetic 5699 | . . . . . . . . . . . . 244 412 . . . . . 244 . . 175 . 579 2548 57 1089 351 Impact 1083 | . . . . . . 465 . . . 231 . . . . 275 . . . . . 112 . . . . . . . Slashing 10202 | . . . . . . . . . . . . . . . . . . . . . 66 . 735 453 4001 1603 3344 . Piercing 1089 | . . . . . . . . . . . . . . . . . . . . . . . . . 317 112 334 326 Highest Corruption 89 | . . . . . . . . 2 . . . 11 3 3 3 2 . . . 10 18 4 4 4 22 37 53 89 Average Corruption 13 | . . . . . . . . 2 . . . 2 2 3 2 1 . . . 10 11 2 3 4 10 28 26 58 Corruption Purged 12 | . . . . . . . . . . . . . . . 3 . . . . . . 9 . . . . . . Corruption Blocked . | . . . . . . . . . . . . . . . . . . . . . . . . . . . . . Effects 351 | . . . . . . . . 21 . . . 2 13 8 13 5 . . . 5 19 3 9 14 63 46 66 64 Message Errors 75 | . . . . . . . . 6 . . . . 3 1 1 1 . . . 1 4 . 4 2 13 9 16 14 Matter Fused 71 | . . . . . . . . 8 . . . 2 7 1 4 . . . . . 1 . 3 6 13 10 9 7 Heat Flow Errors 44 | . . . . . . . . 1 . . . . . 2 2 . . . . . 2 1 . 2 10 6 10 8 Energy Discharges 38 | . . . . . . . . 2 . . . . 2 2 3 2 . . . 1 4 1 . 1 4 5 5 6 Parts Rejected 14 | . . . . . . . . 1 . . . . . . 1 . . . . . . . 1 . 1 2 5 3 Parts Fused 3 | . . . . . . . . . . . . . . . . . . . . 1 . . . . 1 . 1 . Data Loss (minor) 33 | . . . . . . . . . . . . . . 1 1 2 . . . 1 5 . 1 1 9 3 5 4 Data Loss (major) 10 | . . . . . . . . . . . . . 1 . . . . . . . . . . 1 3 . 2 3 Misfires 7 | . . . . . . . . 2 . . . . . 1 1 . . . . . . . . . 1 1 . 1 Alerts 5 | . . . . . . . . 1 . . . . . . . . . . . . 1 . . 1 1 . 1 . Misdirections 19 | . . . . . . . . . . . . . . . . . . . . 1 . . . . 3 7 2 6 Weapon Failures 32 | . . . . . . . . . . . . . . . . . . . . . 2 1 . . 4 3 10 12 Overload Shots . | . . . . . . . . . . . . . . . . . . . . . . . . . . . . . Overflow Damage 3287 | . . 29 . 63 . 254 . . . 124 . 17 55 . 85 41 . . 387 . 103 69 87 119 1079 304 431 40 Projectiles 809 | . . . . . . . . . . . . 17 51 . . 30 . . 107 . 21 61 . 23 110 197 152 40 Explosions 592 | . . 29 . 63 . . . . . . . . . . . 11 . . 253 . . 8 . 34 189 . 5 . Melee 1886 | . . . . . . 254 . . . 124 . . 4 . 85 . . . 27 . 82 . 87 62 780 107 274 . Knockbacks 65 | . . . . . 1 1 . . . . . . 1 . . 1 . . 5 . 5 4 2 . 13 10 14 8 Impact 4 | . . . . . 1 1 . . . . . . 1 . . . . . . . 1 . . . . . . . Kinetic 58 | . . . . . . . . . . . . . . . . 1 . . 5 . 4 4 2 . 11 10 13 8 Secondary 3 | . . . . . . . . . . . . . . . . . . . . . . . . . 2 . 1 . Self-Inflicted Damage 1139 | . . 23 . 38 . 57 . 48 . . . . . . . 16 . . 204 . . 12 . . 721 . 20 . Shots 51 | . . 1 . 1 . 3 . 1 . . . . . . . 2 . . 3 . . 1 . . 38 . 1 . Rammed . | . . . . . . . . . . . . . . . . . . . . . . . . . . . . . Targets Rammed 15 | . 1 . . . 1 . . . . . . . 3 . . 1 . . 4 1 . . . . 3 . . 1 Kicked 15 | . 1 . . . 1 . . . . . . . 3 . . 1 . . 4 1 . . . . 3 . . 1 Crushed . | . . . . . . . . . . . . . . . . . . . . . . . . . . . . . Highest Temperature 556 | . 24 96 48 156 234 18 . 362 . . . 72 365 556 180 257 . . 199 . 379 445 291 168 269 145 192 199 Average Temperature 83 | . 9 39 26 47 48 12 . 102 . . . 26 123 195 49 47 . . 82 . 112 122 87 53 71 45 75 90 Received Heat Transfer 5443 | . 165 6 . 27 1156 117 . 369 . . . 27 144 . 150 653 . . 610 . 132 69 . 258 765 94 512 189 Effects 17 | . . . . . . . . 3 . . . . . 3 . 2 . . . . 1 6 . . 2 . . . Energy Bleed 2 | . . . . . . . . . . . . . . 1 . . . . . . . 1 . . . . . . Interference 14 | . . . . . . . . 2 . . . . . 2 . 2 . . . . 1 5 . . 2 . . . Damage (minor) 1 | . . . . . . . . 1 . . . . . . . . . . . . . . . . . . . . Siege Activations . | . . . . . . . . . . . . . . . . . . . . . . . . . . . . . Martial Activations . | . . . . . . . . . . . . . . . . . . . . . . . . . . . . . Shielding Activations 4 | . . . . . . . . . . . . . . . . . . . . . . . . . . 1 3 . Total Turns 93 | . . . . . . . . . . . . . . . . . . . . . . . . . . 29 64 . Longest Duration 53 | . . . . . . . . . . . . . . . . . . . . . . . . . . 29 53 . Robots Disrupted 1 | . . . . . . . . . . . . . . . . . . . . . . . . . . . 1 . Combat Hostiles 1 | . . . . . . . . . . . . . . . . . . . . . . . . . . . 1 . Robots Corrupted 27 | . . . . . . 2 . . . 2 . 1 2 . . . . . 2 . 1 1 . 4 5 . 7 . Combat Hostiles 19 | . . . . . . 1 . . . . . 1 1 . . . . . 1 . . 1 . 4 5 . 5 . Parts Fried 69 | . . . . . . 6 . . . 2 . . 8 . 1 . . . 7 . 2 3 . 7 16 . 14 3 Impact Corruptions 18 | . . . . . . 6 . . . 4 . . 1 . 1 . . . 2 . 3 . . . . . 1 . Robots Melted 10 | . . . . . . . . . . . . . 1 . . 1 . . 2 . . . . 1 1 2 . 2 Combat Hostiles 10 | . . . . . . . . . . . . . 1 . . 1 . . 2 . . . . 1 1 2 . 2 Parts Melted 79 | . . . . 2 9 . . 6 . . . . 9 . 3 19 . . 4 . . 4 1 1 6 5 1 9 Heat Transferred 25262 | . . 185 . 740 5180 1608 . 1904 . . . 250 1346 600 1361 3042 . . 1481 . 703 1406 1036 333 1741 . 1419 927 Parts Sabotaged 3 | . . . . . . . . . . . . . . . . . . . . . . . . . 3 . . . Parts Stolen . | . . . . . . . . . . . . . . . . . . . . . . . . . . . . . Parts Stripped 25 | . . . . . . . . . . . . . . . . . . . . . . . . . 7 18 . . Power Chain Reactions 7 | . . . . . . . . . . . . . 1 . . . . . . . . 3 . . 1 . 1 1 Alert | -11 -10 -10 -10 -9 -8 -8 -8 -8 -7 -7 -7 -7 -6 -6 -6 -6 -5 -5 -4 -4 -4 -3 -3 -3 -2 -2 -1 -1 ------- Run | Yrd Mat Min Exi Min Mat Gar Mat Gar Fac Was Fac DSF Fac Was Fac Gar Fac DSF Fac Was Fac Res Qua Gar Res Tes Acc Com Maximum Alert Level 5 | . 1 . . . 2 5 3 5 3 1 . . . . 2 4 3 2 4 2 1 . . 2 4 3 2 1 Low Security (%) 43 | 100 89 100 . 100 59 . . . . 82 100 100 100 100 14 5 . . . . 35 100 100 31 . . . 54 Level 1 17 | . 10 . . . 22 12 . . . 17 . . . . 83 8 . 29 19 90 64 . . 37 31 . 47 45 Level 2 15 | . . . . . 18 5 . 10 . . . . . . 2 33 88 70 34 9 . . . 31 25 89 52 . Level 3 9 | . . . . . . 25 100 8 100 . . . . . . 32 11 . 29 . . . . . 24 10 . . Level 4 10 | . . . . . . 38 . 56 . . . . . . . 19 . . 16 . . . . . 18 . . . Level 5 3 | . . . . . . 18 . 24 . . . . . . . . . . . . . . . . . . . . High Security . | . . . . . . . . . . . . . . . . . . . . . . . . . . . . . Max Security . | . . . . . . . . . . . . . . . . . . . . . . . . . . . . . Sterilizations 1 | . . . . . . . . . . . . . . . . . . 1 . . . . . . . . . . Peak Influence 2041 | 5 226 177 . 167 477 2041 994 1937 1016 308 . 108 64 15 403 1354 710 587 1171 405 320 161 89 581 1278 716 628 361 Initial 1016 | . . 31 . . . 302 994 626 1016 308 . . 56 . . 168 710 375 308 405 213 161 84 42 326 716 355 361 Average 448 | . 119 59 . 34 198 1142 980 1344 949 90 . 44 11 1 274 740 569 442 710 357 237 70 33 293 691 656 447 216 Influence Increases 15286 | 10 616 283 6 299 1241 1759 . 1481 15 22 . 158 220 39 812 1306 6 212 1525 . 353 488 391 559 1914 257 1045 269 Destroy 0b10 Robot/C 7100 | . 400 200 . 160 740 440 . 720 . . . 105 90 . 285 630 . 120 630 . 90 225 135 255 1005 150 570 150 Destroy 0b10 Robot/NC 568 | 10 35 5 5 15 90 40 . 20 . . . . 28 . 40 . . . 68 . 8 20 32 . 88 16 36 12 Destroy Leader 1272 | . 84 30 . 30 200 30 . 30 . . . 24 46 . 82 32 . 16 128 . 32 68 30 48 182 26 114 40 Allied During Kill 623 | . . 9 1 49 . 41 . 33 . . . 16 1 . 250 128 . 44 44 . . . . 3 . . 4 . Trap Triggered on 0b10 36 | . . . . . 20 . . . . . . . . . . . . . . . . . . . . . . 16 Successful Hack 294 | . 22 . . . 44 . . . 2 . . . 28 . 30 11 6 . 20 . 21 7 60 11 27 5 . . Select Force Hacks 15 | . . . . . . . . . . . . . . . . . . . 15 . . . . . . . . . Disable Machine 786 | . . . . . . 75 . 75 12 . . 12 12 . 36 . . 12 156 . 108 84 72 . 24 24 84 . Anti-Garrison Action 1741 | . . . . . . 900 . 425 . . . . . . . 302 . . . . . . . 114 . . . . Destroy Structure 2185 | . . 39 . 45 12 173 . 178 1 22 . 1 15 39 41 191 . 20 404 . 94 84 62 92 408 24 189 51 Partial Spotted 48 | . . . . . . . . . . . . . . . . . . . 12 . . . . 12 24 . . . Lose Combat Pursuer 618 | . 75 . . . 135 60 . . . . . . . . 48 12 . . 48 . . . . 24 156 12 48 . Influence Decreases 15286 | 10 536 352 17 299 775 184 1077 508 1071 903 . 50 328 39 572 192 824 161 953 854 350 645 485 35 1221 938 1072 835 Entered New Map 6642 | . . 49 11 . . 164 1047 338 921 573 . . 52 . . 72 644 161 279 754 92 147 67 15 255 558 238 205 Time Decay 6460 | 10 516 303 6 289 625 . 30 . 140 300 . . 266 39 382 . 30 . 434 100 238 488 418 . 626 350 514 356 Lost Part 1454 | . 20 . . 10 150 . . 50 10 . . 10 10 . . 60 . . 180 . 20 . . . 340 30 290 274 Lost Ally 580 | . . . . . . 20 . 120 . 30 . 40 . . 190 60 . . 60 . . 10 . 20 . . 30 . Purge Threat 150 | . . . . . . . . . . . . . . . . . 150 . . . . . . . . . . . Squads Dispatched 73 | . 4 1 . . 5 . . . 1 . . 1 2 . 9 . 1 1 8 . 2 7 4 . 11 4 11 1 Investigation 13 | . 2 . . . . . . . 1 . . . . . 2 . 1 . 2 . . 3 . . 1 . 1 . Extermination 23 | . . . . . . . . . . . . . 2 . 2 . . . 2 . 1 4 3 . 3 2 3 1 Reinforcement 26 | . 2 . . . 5 . . . . . . 1 . . 5 . . 1 3 . 1 . 1 . 4 . 3 . Assault 8 | . . 1 . . . . . . . . . . . . . . . . 1 . . . . . 3 2 1 . Garrison 3 | . . . . . . . . . . . . . . . . . . . . . . . . . . . 3 . Intercept . | . . . . . . . . . . . . . . . . . . . . . . . . . . . . . Searches Triggered . | . . . . . . . . . . . . . . . . . . . . . . . . . . . . . Construction Impeded 6 | . . . . . . . . . . . . . . . 2 . . . 1 . . . . . 1 . 2 . Haulers Reinforced 2 | . . . . . . . . . . . . . . . 1 . . . 1 . . . . . . . . . Active Scanning Responses . | . . . . . . . . . . . . . . . . . . . . . . . . . . . . . Cargo Convoy Interrupts 1 | . . . . . . . . . . . . . . . . . . . . . . . . . 1 . . . Stealth | -11 -10 -10 -10 -9 -8 -8 -8 -8 -7 -7 -7 -7 -6 -6 -6 -6 -5 -5 -4 -4 -4 -3 -3 -3 -2 -2 -1 -1 --------- Run | Yrd Mat Min Exi Min Mat Gar Mat Gar Fac Was Fac DSF Fac Was Fac Gar Fac DSF Fac Was Fac Res Qua Gar Res Tes Acc Com Distress Signals 23 | . 4 . . 4 5 . . . 1 . . . . . . . . . 4 . . 1 . . 2 1 1 . Communications Jammed 101 | . . . . . 5 48 . . . . . 5 . . . . . . 15 . 1 . . . 27 . . . Distress Signals 91 | . . . . . . 48 . . . . . . . . . . . . 15 . 1 . . . 27 . . . Times Spotted 581 | . 32 11 . 18 62 21 . 33 2 4 . 6 8 5 22 40 . 9 55 3 7 19 16 18 102 20 53 15 Peak Tracking Total 15 | . 6 4 . 6 6 7 . 7 3 2 . 2 3 2 4 4 . 5 8 2 4 3 3 6 15 4 9 4 Tactical Retreats 27 | . 3 . . . 6 2 . . . . . . . . 1 1 . . 1 . . . . 2 6 1 4 . Traps | -11 -10 -10 -10 -9 -8 -8 -8 -8 -7 -7 -7 -7 -6 -6 -6 -6 -5 -5 -4 -4 -4 -3 -3 -3 -2 -2 -1 -1 ------- Run | Yrd Mat Min Exi Min Mat Gar Mat Gar Fac Was Fac DSF Fac Was Fac Gar Fac DSF Fac Was Fac Res Qua Gar Res Tes Acc Com Traps Triggered 32 | . 1 . . . 1 6 . 3 2 . . . 2 . 2 6 . . 2 . . . 3 1 1 1 . 1 Indirectly . | . . . . . . . . . . . . . . . . . . . . . . . . . . . . . Trap Hack Attempts 35 | . . . . . 24 . 11 . . . . . . . . . . . . . . . . . . . . . Triggered . | . . . . . . . . . . . . . . . . . . . . . . . . . . . . . Disarmed . | . . . . . . . . . . . . . . . . . . . . . . . . . . . . . Reprogrammed 7 | . . . . . 6 . 1 . . . . . . . . . . . . . . . . . . . . . Reused 4 | . . . . . 2 . . . . . . . . . . . . . . . . . . . . . . 2 Traps Extracted 9 | . . . . . 7 . 1 . . . . . . . . . . . . . . . . . . . . 1 Installed 9 | . . . . . 4 . . . . . . . . . . . . . . . . . . . . . . 5 Triggered 4 | . . . . . 2 . . . . . . . . . . . . . . . . . . . . . . 2 Most Traps Carried 5 | . . . . . 4 4 5 5 5 5 4 4 4 4 4 4 4 4 4 4 4 4 4 4 4 4 4 4 Machines | -11 -10 -10 -10 -9 -8 -8 -8 -8 -7 -7 -7 -7 -6 -6 -6 -6 -5 -5 -4 -4 -4 -3 -3 -3 -2 -2 -1 -1 ---------- Run | Yrd Mat Min Exi Min Mat Gar Mat Gar Fac Was Fac DSF Fac Was Fac Gar Fac DSF Fac Was Fac Res Qua Gar Res Tes Acc Com Machines Disabled 80 | . . . . . . 9 . 11 1 . . 1 1 . 3 4 . 1 13 . 9 7 6 3 2 2 7 . Max in Single Turn 8 | . . . . . . 1 . 1 1 . . 1 1 . 1 1 . 1 2 . 8 1 1 1 2 1 1 . Garrison Access 2 | . . . . . . . . . . . . . . . . . . . . . . 1 . . 1 . . . Garrison Relay 16 | . . . . . . 4 . 5 . . . . . . . 4 . . . . . . . 3 . . . . Energy Cycler 1 | . . . . . . . . . . . . . . . . . . . . . . . . . . . 1 . Machines Repaired . | . . . . . . . . . . . . . . . . . . . . . . . . . . . . . Machines Dismantled . | . . . . . . . . . . . . . . . . . . . . . . . . . . . . . Machines Sabotaged . | . . . . . . . . . . . . . . . . . . . . . . . . . . . . . Overloaded Fab Kills . | . . . . . . . . . . . . . . . . . . . . . . . . . . . . . Hacking | -11 -10 -10 -10 -9 -8 -8 -8 -8 -7 -7 -7 -7 -6 -6 -6 -6 -5 -5 -4 -4 -4 -3 -3 -3 -2 -2 -1 -1 --------- Run | Yrd Mat Min Exi Min Mat Gar Mat Gar Fac Was Fac DSF Fac Was Fac Gar Fac DSF Fac Was Fac Res Qua Gar Res Tes Acc Com Machines Accessed 107 | . 9 . 2 . 17 2 1 1 4 . 1 . 8 . 7 4 3 . 7 . 5 9 10 1 10 4 2 . Terminals 58 | . 6 . . . 10 2 . 1 1 . 1 . 1 . 3 4 3 . 3 . 3 4 5 1 5 3 2 . Fabricators 13 | . . . . . . . . . 1 . . . 3 . 1 . . . 3 . 2 1 . . 2 . . . Repair Stations 11 | . 1 . . . 2 . . . 1 . . . 2 . 1 . . . 1 . . 1 1 . . 1 . . Recycling Units 5 | . 2 . . . 2 . . . . . . . 1 . . . . . . . . . . . . . . . Scanalyzers 12 | . . . . . 2 . . . 1 . . . 1 . 1 . . . . . . 2 3 . 2 . . . Garrison Access 6 | . . . . . 1 . 1 . . . . . . . 1 . . . . . . 1 1 . 1 . . . Total Hacks 283 | . 20 . 5 . 71 8 3 2 9 . 1 . 26 . 16 8 11 . 20 . 10 18 21 1 21 10 2 . Successful 130 | . 6 . 5 . 39 3 1 1 7 . 1 . 11 . 9 3 4 . 9 . 5 6 9 1 8 2 . . Failed 152 | . 14 . . . 31 5 2 1 2 . . . 15 . 7 5 7 . 11 . 5 12 12 . 13 8 2 . Catastrophic 42 | . 3 . . . 4 2 1 1 1 . . . 1 . 1 3 1 . 2 . 3 5 5 . 4 3 2 . Database Lockouts 1 | . . . . . 1 . . . . . . . . . . . . . . . . . . . . . . . Manual 88 | . 13 . 1 . 24 4 2 1 1 . . . 10 . 4 2 3 . 8 . 4 4 4 . 2 1 . . Terminals 136 | . 14 . . . 37 8 . 2 1 . 1 . 2 . 6 8 11 . 6 . 5 8 10 1 9 5 2 . Fabricators 42 | . . . . . . . . . 2 . . . 11 . 3 . . . 11 . 5 4 . . 6 . . . Repair Stations 31 | . 2 . . . 10 . . . 2 . . . 4 . 2 . . . 3 . . 1 2 . . 5 . . Recycling Units 17 | . 4 . . . 6 . . . . . . . 7 . . . . . . . . . . . . . . . Scanalyzers 41 | . . . . . 17 . . . 4 . . . 2 . 3 . . . . . . 3 7 . 5 . . . Garrison Access 11 | . . . . . 1 . 3 . . . . . . . 2 . . . . . . 2 2 . 1 . . . Terminal Hacks 32 | . 3 . 5 . 6 2 . 1 . . 1 . . . 2 3 4 . . . . 1 3 1 . . . . Record 4 | . . . 4 . . . . . . . . . . . . . . . . . . . . . . . . . Part Schematic 3 | . 1 . . . . . . . . . . . . . 1 . . . . . . 1 . . . . . . Robot Schematic 1 | . 1 . . . . . . . . . . . . . . . . . . . . . . . . . . . Robot Analysis 3 | . 1 . . . 2 . . . . . . . . . . . . . . . . . . . . . . . Prototype ID Bank 1 | . . . . . 1 . . . . . . . . . . . . . . . . . . . . . . . Open Door 2 | . . . . . . 1 . . . . . . . . . 1 . . . . . . . . . . . . Open DSF 3 | . . . . . . . . . . . 1 . . . 1 . 1 . . . . . . . . . . . Emergency Access Points 3 | . . . . . . 1 . 1 . . . . . . . 1 . . . . . . . . . . . . Terminal Index 1 | . . . . . . . . . . . . . . . . . . . . . . . 1 . . . . . Scanalyzer Index 1 | . . . . . 1 . . . . . . . . . . . . . . . . . . . . . . . Unreport Threat 1 | . . . . . . . . . . . . . . . . . 1 . . . . . . . . . . . Registered Components 1 | . . . . . . . . . . . . . . . . . 1 . . . . . . . . . . . Registered Prototypes 1 | . . . . . 1 . . . . . . . . . . . . . . . . . . . . . . . Zone Layout 4 | . . . . . 1 . . . . . . . . . . . 1 . . . . . 2 . . . . . Garrison Registry 1 | . . . . . . . . . . . . . . . . . . . . . . . . 1 . . . . Patrol Navigation 1 | . . . . . . . . . . . . . . . . 1 . . . . . . . . . . . . Proto ID Catalog 1 | . . . 1 . . . . . . . . . . . . . . . . . . . . . . . . . Fabricator Hacks 16 | . . . . . . . . . 1 . . . 3 . 1 . . . 3 . 3 2 . . 3 . . . Network Status 5 | . . . . . . . . . . . . . 1 . 1 . . . 1 . 1 1 . . . . . . Load Schematic 6 | . . . . . . . . . 1 . . . . . . . . . 1 . 1 1 . . 2 . . . Build 5 | . . . . . . . . . . . . . 2 . . . . . 1 . 1 . . . 1 . . . Repair Station Hacks 20 | . 2 . . . 6 . . . 2 . . . 2 . 2 . . . 2 . . . 2 . . 2 . . Scan Component 10 | . 1 . . . 3 . . . 1 . . . 1 . 1 . . . 1 . . . 1 . . 1 . . Repair 10 | . 1 . . . 3 . . . 1 . . . 1 . 1 . . . 1 . . . 1 . . 1 . . Recycling Unit Hacks 2 | . . . . . 1 . . . . . . . 1 . . . . . . . . . . . . . . . Retrieve Components 2 | . . . . . 1 . . . . . . . 1 . . . . . . . . . . . . . . . Scanalyzer 26 | . . . . . 14 . . . 3 . . . 1 . 2 . . . . . . . 3 . 3 . . . Insert Component 9 | . . . . . 6 . . . 1 . . . . . . . . . . . . . . . 2 . . . Analyze 9 | . . . . . 7 . . . 1 . . . . . . . . . . . . . . . 1 . . . Retrieve Study 8 | . . . . . 1 . . . 1 . . . 1 . 2 . . . . . . . 3 . . . . . Garrison Access Hacks 7 | . . . . . 1 . 1 . . . . . . . 1 . . . . . . 2 1 . 1 . . . Unlock Access 4 | . . . . . 1 . 1 . . . . . . . 1 . . . . . . . 1 . . . . . Seal Access 2 | . . . . . . . . . . . . . . . . . . . . . . 1 . . 1 . . . Coupler Status 1 | . . . . . . . . . . . . . . . . . . . . . . 1 . . . . . . Unauthorized Hacks 27 | . 1 . . . 11 1 . . 1 . . . 4 . 1 . . . 4 . 2 1 . . 1 . . . Terminals 11 | . . . . . 8 1 . . . . . . . . . . . . . . 1 . . . 1 . . . Track 2 | . . . . . 1 1 . . . . . . . . . . . . . . . . . . . . . . Botnet 4 | . . . . . 2 . . . . . . . . . . . . . . . 1 . . . 1 . . . Skim 5 | . . . . . 5 . . . . . . . . . . . . . . . . . . . . . . . Fabricators 10 | . . . . . . . . . 1 . . . 2 . 1 . . . 4 . 1 1 . . . . . . Prioritize 1 | . . . . . . . . . . . . . . . . . . . 1 . . . . . . . . . Liberate 2 | . . . . . . . . . . . . . 1 . . . . . . . 1 . . . . . . . Haulers 2 | . . . . . . . . . . . . . 1 . . . . . 1 . . . . . . . . . Download 1 | . . . . . . . . . . . . . . . . . . . 1 . . . . . . . . . Recompile 4 | . . . . . . . . . 1 . . . . . 1 . . . 1 . . 1 . . . . . . Repair Stations . | . . . . . . . . . . . . . . . . . . . . . . . . . . . . . Recycling Units 6 | . 1 . . . 3 . . . . . . . 2 . . . . . . . . . . . . . . . Reject 2 | . 1 . . . 1 . . . . . . . . . . . . . . . . . . . . . . . Recyclers 2 | . . . . . 1 . . . . . . . 1 . . . . . . . . . . . . . . . Mask 2 | . . . . . 1 . . . . . . . 1 . . . . . . . . . . . . . . . Scanalyzers . | . . . . . . . . . . . . . . . . . . . . . . . . . . . . . Garrison Access . | . . . . . . . . . . . . . . . . . . . . . . . . . . . . . Data Cores Recovered 3 | . . . . . . . . . . . . . . . 1 . . . . . . . 1 . 1 . . . Used . | . . . . . . . . . . . . . . . . . . . . . . . . . . . . . Hacking Detections 91 | . 8 . . . 16 2 1 1 2 . . . 7 . 5 3 3 . 5 . 4 8 10 1 9 4 2 . Full Trace Events 10 | . 2 . . . 3 . . . . . . . . . 1 . 1 . . . . 2 . . 1 . . . Feedback Events 1 | . . . . . . . . . . . . . . . . . . . . . . 1 . . . . . . Corruption 1 | . . . . . . . . . . . . . . . . . . . . . . 1 . . . . . . Feedback Blocked . | . . . . . . . . . . . . . . . . . . . . . . . . . . . . . Robot Schematics Acquired 1 | . 1 . . . . . . . . . . . . . . . . . . . . . . . . . . . Robots Built . | . . . . . . . . . . . . . . . . . . . . . . . . . . . . . Authchips . | . . . . . . . . . . . . . . . . . . . . . . . . . . . . . Time . | . . . . . . . . . . . . . . . . . . . . . . . . . . . . . Total Robot Build Rating . | . . . . . . . . . . . . . . . . . . . . . . . . . . . . . Part Schematics Acquired 12 | . 1 . . . 6 . . . 1 . . . . . 1 . . . 1 . . 1 . . 1 . . . Parts Built 7 | . . . . . . . . . . . . . 4 . . . . . 1 . 1 . . . 1 . . . Authchips 2 | . . . . . . . . . . . . . . . . . . . . . 1 . . . 1 . . . Time 480 | . . . . . . . . . . . . . 181 . . . . . 128 . 102 . . . 69 . . . Total Part Build Rating 55 | . . . . . . . . . . . . . 30 . . . . . 8 . 8 . . . 9 . . . Part Studies Acquired 8 | . . . . . 1 . . . 1 . . . 1 . 2 . . . . . . . 3 . . . . . Parts Repaired 9 | . 1 . . . 3 . . . 1 . . . 1 . 1 . . . 1 . . . . . . 1 . . Time 444 | . 26 . . . 125 . . . 38 . . . 50 . 44 . . . 25 . . . 68 . . 68 . . Parts Recycled . | . . . . . . . . . . . . . . . . . . . . . . . . . . . . . Recycled Matter . | . . . . . . . . . . . . . . . . . . . . . . . . . . . . . Retrieved Matter . | . . . . . . . . . . . . . . . . . . . . . . . . . . . . . Retrieved Components 10 | . . . . . 10 . . . . . . . . . . . . . . . . . . . . . . . Parts Scanalyzed 9 | . . . . . 6 . . . 1 . . . . . . . . . . . . . . . 2 . . . Part Schematics Acquired 8 | . . . . . 6 . . . 1 . . . . . . . . . . . . . . . 1 . . . Parts Damaged 2 | . . . . . 1 . . . . . . . . . . . . . . . . . . . 1 . . . Bothacking | -11 -10 -10 -10 -9 -8 -8 -8 -8 -7 -7 -7 -7 -6 -6 -6 -6 -5 -5 -4 -4 -4 -3 -3 -3 -2 -2 -1 -1 ------------ Run | Yrd Mat Min Exi Min Mat Gar Mat Gar Fac Was Fac DSF Fac Was Fac Gar Fac DSF Fac Was Fac Res Qua Gar Res Tes Acc Com Used RIF Installer 5 | . . . . . . 1 . 2 . . . . . . . 1 . . . . . . . 1 . . . . Coupler Efficiency 1 | . . . . . . . . 1 . . . . . . . . . . . . . . . . . . . . Code Merge 1 | . . . . . . . . . . . . . . . . 1 . . . . . . . . . . . . Threat Obfuscator 1 | . . . . . . . . 1 . . . . . . . . . . . . . . . . . . . . Zone Cloak 1 | . . . . . . . . . . . . . . . . . . . . . . . . 1 . . . . Robots Hacked 45 | . . . . . . . . 3 1 6 . . 1 6 . 7 . 1 4 6 . 6 . 1 3 . . . Non-combat 15 | . . . . . . . . 1 1 . . . 1 . . . . . 3 . . 6 . . 3 . . . Combat 30 | . . . . . . . . 2 . 6 . . . 6 . 7 . 1 1 6 . . . 1 . . . . Robot Hacks Applied 51 | . . . . . . . . 7 1 6 . . 1 7 . 7 . 1 4 6 . 7 . 1 3 . . . parse_system 1 | . . . . . . . . . . . . . . 1 . . . . . . . . . . . . . . find_chute 4 | . . . . . . . . . 1 . . . 1 . . . . . 2 . . . . . . . . . map_walls 2 | . . . . . . . . . . . . . . . . . . . . . . 1 . . 1 . . . randomize_corridors 1 | . . . . . . . . . . . . . . . . . . . . . . 1 . . . . . . find_fabricator 1 | . . . . . . . . . . . . . . . . . . . 1 . . . . . . . . . drop_inventory 2 | . . . . . . . . . . . . . . . . . . . . . . 2 . . . . . . find_station 1 | . . . . . . . . . . . . . . . . . . . . . . 1 . . . . . . release_backups 1 | . . . . . . . . 1 . . . . . . . . . . . . . . . . . . . . deconstruct_bot 2 | . . . . . . . . 2 . . . . . . . . . . . . . . . . . . . . map_route 2 | . . . . . . . . . . . . . . . . . . . . . . . . . 2 . . . ignore_targets 18 | . . . . . . . . . . 6 . . . 6 . . . . . 6 . . . . . . . . reboot_system 1 | . . . . . . . . 1 . . . . . . . . . . . . . . . . . . . . overwrite_iff 2 | . . . . . . . . . . . . . . . . 2 . . . . . . . . . . . . streamctrl_low 1 | . . . . . . . . 1 . . . . . . . . . . . . . . . . . . . . formatsys_low 3 | . . . . . . . . 1 . . . . . . . . . . . . . 2 . . . . . . formatsys_high 9 | . . . . . . . . 1 . . . . . . . 5 . 1 1 . . . . 1 . . . . Relay Couplers Released 67 | . . . . . . 14 . 24 . . . . . . . 15 . . . . . 2 . 11 1 . . . Machine Destruction 63 | . . . . . . 14 . 20 . . . . . . . 15 . . . . . 2 . 11 1 . . . Programmers 4 | . . . . . . . . 4 . . . . . . . . . . . . . . . . . . . . Attached 19 | . . . . . . . . 3 . 1 . . . 1 . 7 . 1 1 1 . 1 . 3 . . . . Merged Code Value 19 | . . . . . . . . . . . . . . . . . . . . . . . . 10 9 . . . Fabnet Peak Effective % . | . . . . . . . . . . . . . . . . . . . . . . . . . . . . . Robots Rewired 11 | . . . 5 . . . . 5 . . . . . . . . . . . . . . . . . . 1 . Allies Hacked 1 | . . . . . . . . . . . . . . . . . . . . . . 1 . . . . . . Hacks Repelled . | . . . . . . . . . . . . . . . . . . . . . . . . . . . . . Allies | -11 -10 -10 -10 -9 -8 -8 -8 -8 -7 -7 -7 -7 -6 -6 -6 -6 -5 -5 -4 -4 -4 -3 -3 -3 -2 -2 -1 -1 -------- Run | Yrd Mat Min Exi Min Mat Gar Mat Gar Fac Was Fac DSF Fac Was Fac Gar Fac DSF Fac Was Fac Res Qua Gar Res Tes Acc Com Total Allies 70 | . . 2 5 . . 2 . 7 . 20 . . . 18 . 9 . 1 1 1 . 2 . 1 . . 1 . Largest Group 19 | . . 2 5 5 . 2 . 4 1 19 7 7 2 18 10 5 2 3 3 1 . 1 . 1 . . 1 . Highest-Rated Group 656 | . . 62 53 53 . 70 . 106 20 465 198 198 54 656 420 180 87 229 293 46 . 23 . 64 . . 69 . Highest-Rated Ally 142 | . . 31 21 21 . 39 . 34 20 35 31 31 27 50 50 46 46 142 142 46 . 23 . 64 . . 69 . Total Orders 24 | . . . . . . . . 11 . 1 . . . . 2 3 . . . . . 4 . . . . 3 . STAY 10 | . . . . . . . . 7 . . . . . . . 2 . . . . . 1 . . . . . . FOLLOW 4 | . . . . . . . . 2 . . . . . . . 1 . . . . . 1 . . . . . . AID 5 | . . . . . . . . 2 . 1 . . . . . . . . . . . 2 . . . . . . EXPLORE 5 | . . . . . . . . . . . . . . . 2 . . . . . . . . . . . 3 . Ally Attacks 667 | . . 17 . 35 . 26 . 30 . 207 . 25 . 109 80 61 . 11 23 30 . . . 3 . . 10 . Total Damage 18578 | . . 253 . 302 . 409 . 548 . 4660 . 401 . 4646 2490 2192 . 528 920 892 . . . 70 . . 267 . Kills 100 | . . 4 . 4 . 8 . 7 . 15 . 1 . 14 17 15 . 7 6 . . . . . . . 2 . Allies Corrupted 2 | . . . . . . . . . . 2 . . . . . . . . . . . . . . . . . . Allies Melted . | . . . . . . . . . . . . . . . . . . . . . . . . . . . . . Intel | -11 -10 -10 -10 -9 -8 -8 -8 -8 -7 -7 -7 -7 -6 -6 -6 -6 -5 -5 -4 -4 -4 -3 -3 -3 -2 -2 -1 -1 ------- Run | Yrd Mat Min Exi Min Mat Gar Mat Gar Fac Was Fac DSF Fac Was Fac Gar Fac DSF Fac Was Fac Res Qua Gar Res Tes Acc Com Active Infowar (turns) 19800 | . 1231 5 . 605 2012 670 68 1006 285 1005 5 227 775 383 394 1018 69 109 1054 206 514 1329 1293 638 2101 786 1408 604 Optics 7349 | . . . . . . . . . . . . . . . . . . . . . . 529 1293 638 2091 786 1408 604 Sensors 8169 | . . . . . . . . . 284 1005 5 177 775 383 394 11 69 21 . . 321 1226 1089 21 1537 380 471 . Terrain 2607 | . . . . 605 . . . . . . . . . . . . 68 109 1054 206 417 . . . 148 . . . Structural 534 | . 529 5 . . . . . . . . . . . . . . . . . . . . . . . . . . Seismic 703 | . 702 . . . . . . . . . . . . . . . . 1 . . . . . . . . . . Machine Analysis 2115 | . . . . . 1948 . . . . . . . . . . . . . . . . 167 . . . . . . Jamming 8554 | . . . . . 64 670 68 1006 1 . . 50 . . . 1007 69 105 701 5 469 1317 1293 613 1116 . . . Robot Analysis Total 3 | . 1 . . . 2 . . . . . . . . . . . . . . . . . . . . . . . Derelict Logs Recovered 5 | . . 3 . 2 . . . . . . . . . . . . . . . . . . . . . . . . Drone Launches 7 | . . . . . . . . . . . . . . . 2 . . . . . . . . . . . 5 . Drone Recoveries 3 | . . . . . . . . . . . . . . . 1 . . . . . . . . . . . 2 . Exploration | -11 -10 -10 -10 -9 -8 -8 -8 -8 -7 -7 -7 -7 -6 -6 -6 -6 -5 -5 -4 -4 -4 -3 -3 -3 -2 -2 -1 -1 ------------- Run | Yrd Mat Min Exi Min Mat Gar Mat Gar Fac Was Fac DSF Fac Was Fac Gar Fac DSF Fac Was Fac Res Qua Gar Res Tes Acc Com Turns Passed 30478 | 71 1633 1128 1544 1379 3659 2748 73 1848 285 1005 5 254 1222 388 923 1924 69 109 1064 206 514 1329 1293 638 2145 786 1408 828 Spaces Moved 14677 | 41 1020 558 673 412 1469 1063 30 816 195 331 5 118 686 242 602 1079 56 70 520 160 276 843 773 343 1024 394 625 253 Core 14 | 7 . . . . . . . . . . . . . . . . . . . . . . . . . . . 7 Treads . | . . . . . . . . . . . . . . . . . . . . . . . . . . . . . Legs 14663 | 34 1020 558 673 412 1469 1063 30 816 195 331 5 118 686 242 602 1079 56 70 520 160 276 843 773 343 1024 394 625 246 Wheels . | . . . . . . . . . . . . . . . . . . . . . . . . . . . . . Hover . | . . . . . . . . . . . . . . . . . . . . . . . . . . . . . Flight . | . . . . . . . . . . . . . . . . . . . . . . . . . . . . . Fastest Speed 50 | 50 120 120 190 260 118 188 188 111 108 108 108 102 108 108 105 102 102 102 102 116 110 110 110 110 101 123 107 50 Average Speed 139 | 108 120 189 219 260 165 188 188 144 111 108 108 127 114 108 106 120 102 102 108 116 115 117 114 110 111 124 120 138 Slowest Speed 315 | 120 190 190 260 260 192 188 188 188 113 108 108 183 120 108 179 186 102 102 265 116 120 220 242 110 182 193 245 315 Overloaded Moves . | . . . . . . . . . . . . . . . . . . . . . . . . . . . . . Propulsion Burnouts . | . . . . . . . . . . . . . . . . . . . . . . . . . . . . . Robots Hopped . | . . . . . . . . . . . . . . . . . . . . . . . . . . . . . Potential Cave-ins 9 | . . . . . . . . . . . . . . . . . . . . . . . 2 . 2 . . 5 Cave-ins Triggered . | . . . . . . . . . . . . . . . . . . . . . . . . . . . . . Exploration Rate (%) 55 | 3 97 92 89 97 90 95 5 91 8 94 . 89 19 90 27 98 3 65 19 94 11 18 89 59 39 32 20 9 Regions Visited 28 Branch Regions 6 Pre-discovered Areas 3 | . . . 1 1 1 . . . . . . . . . . . . . . . . . . . . . . . Known Exits Taken 8 | . . . . . 1 . 1 . . . 1 . . . 1 . 1 . . . 1 1 1 . . . . . Unknown Exits Taken 8 | 1 1 1 1 1 . . . . . . . . . . . . . . . . . . . . 1 1 1 . Scrap Searched 2 | . . . . 2 . . . . . . . . . . . . . . . . . . . . . . . . Spaces Dug 316 | . . 23 . 17 1 43 . 33 1 . . 1 2 . 3 44 . 5 21 . 3 13 17 14 52 4 13 6 Terrain Destroyed 936 | . . 49 . 56 1 56 . 47 1 . . 2 15 . 4 53 . 11 210 . 51 46 39 28 161 10 61 35 Melee 99 | . . . . . 1 31 . 10 1 . . 1 . . 1 9 . . 4 . 3 5 2 . 14 1 12 4 Projectile 328 | . . . . . . . . . . . . 1 7 . 3 13 . 11 82 . 10 33 37 22 62 9 14 24 AOE 508 | . . 49 . 56 . 25 . 37 . . . . 8 . . 31 . . 124 . 38 8 . 6 85 . 35 6 Terrain Rammed . | . . . . . . . . . . . . . . . . . . . . . . . . . . . . . Walls Destroyed . | . . . . . . . . . . . . . . . . . . . . . . . . . . . . . Machines Disabled . | . . . . . . . . . . . . . . . . . . . . . . . . . . . . . Actions | -11 -10 -10 -10 -9 -8 -8 -8 -8 -7 -7 -7 -7 -6 -6 -6 -6 -5 -5 -4 -4 -4 -3 -3 -3 -2 -2 -1 -1 --------- Run | Yrd Mat Min Exi Min Mat Gar Mat Gar Fac Was Fac DSF Fac Was Fac Gar Fac DSF Fac Was Fac Res Qua Gar Res Tes Acc Com Total 21915 | 55 1302 601 739 666 2327 1551 45 1284 254 968 4 186 1072 350 820 1482 67 94 856 180 408 1109 1113 536 1669 570 966 641 Wait 3714 | . 147 16 13 212 474 288 2 226 41 604 . 6 320 83 120 129 1 1 90 9 61 79 186 75 237 38 74 182 Move 14654 | 40 1019 557 672 411 1469 1062 29 815 195 330 4 117 686 241 601 1078 55 69 520 159 275 842 772 342 1024 393 624 253 Hop . | . . . . . . . . . . . . . . . . . . . . . . . . . . . . . Pick Up 286 | 3 14 1 9 1 38 10 . 16 4 5 . 7 4 . 11 17 2 . 20 2 5 23 13 8 38 9 9 17 Fast Attach 201 | 6 4 2 . 2 14 1 . 5 1 1 . 1 5 . 10 11 3 5 18 . 3 6 9 3 41 14 22 14 Attach 190 | . 3 . . . 24 . . 9 3 . . 1 2 1 2 15 2 . 19 . 3 5 6 4 32 11 18 30 Detach 53 | . . . . . 2 . . 1 . . . . . . 1 3 . . 8 . . 1 1 . 14 6 6 10 Swap 400 | . 16 5 2 9 37 15 3 34 3 4 . 17 8 4 19 51 1 3 22 2 18 46 8 20 29 10 11 3 Drop 367 | . 20 4 5 1 43 13 . 20 1 9 . 13 8 1 20 34 3 5 24 1 8 28 21 11 43 21 . 10 Fire 1493 | 6 78 16 2 30 196 66 . 111 2 11 . 23 36 20 31 121 . 11 127 6 30 74 73 60 123 29 112 99 Melee 413 | . . . . . 1 81 . 25 4 4 . 1 . . 5 20 . . 4 . 5 5 14 13 85 39 90 17 Ram . | . . . . . . . . . . . . . . . . . . . . . . . . . . . . . Kick 15 | . 1 . . . 1 . . . . . . . 3 . . 1 . . 4 1 . . . . 3 . . 1 Crush . | . . . . . . . . . . . . . . . . . . . . . . . . . . . . . Escape Stasis 25 | . . . . . . 15 . . . . . . . . . . . . . . . . 10 . . . . . Rewire 60 | . . . 36 . . . . 22 . . . . . . . 2 . . . . . . . . . . . . Trap 44 | . . . . . 28 . 11 . . . . . . . . . . . . . . . . . . . . 5 Miscellaneous . | . . . . . . . . . . . . . . . . . . . . . . . . . . . . . Route ------- -11/Scrapyard -10/Materials (discovered 5 exits: *Mat x3 / [*Min] / *Sub) -10/Mines (discovered 4 exits: *Mat x2 / *Exi / *Sub) -10/Exiles (discovered 2 exits: [*Min x2]) -9/Mines (discovered 2 exits: *Mat x2) -8/Materials (discovered 4 exits: *Fac x3 / Gar) -8/Garrison (discovered 3 exits: *Mat x3) -8/Materials -8/Garrison (discovered 3 exits: *Fac x3) -7/Factory (discovered 2 exits: Sto / Low) -7/Waste -7/Factory -7/DSF -6/Factory -6/Waste -6/Factory (discovered 2 exits: *Fac / Gar) -6/Garrison (discovered 3 exits: *Fac x3) -5/Factory -5/DSF -4/Factory -4/Waste -4/Factory -3/Research -3/Quarantine (discovered 2 exits: *Res / Gar) -3/Garrison (discovered 3 exits: *Res x3) -2/Research -2/Testing -1/Access -1/Command History --------- Turn | Location | Event 4 | -11/Scrapyard | Discovered new exit (range 16) 72 | -11/Scrapyard | Entered Materials 138 | -10/Materials | Discovered new exit (range 3) 308 | -10/Materials | Build established: Mutant 464 | -10/Materials | Repaired Aluminum Leg 563 | -10/Materials | Discovered new exit (range 9) 809 | -10/Materials | Discovered new exit (range 14) 872 | -10/Materials | Derelicts attacked the area 918 | -10/Materials | Core integrity fell below 50% 1258 | -10/Materials | Discovered new exit (range 9) 1470 | -10/Materials | Discovered new exit (range 9) 1475 | -10/Materials | Build established: Scavenger-Mutant 1705 | -10/Materials | Entered Mines 1765 | -10/Mines | Found a hidden stash of uninstalled traps 1926 | -10/Mines | Identified exit to Subcaves 1958 | -10/Mines | Discovered new exit (range 10) 1961 | -10/Mines | Met a Derelict testing a Signal Generator 1997 | -10/Mines | Received a Mining Laser from a helpful Derelict 2017 | -10/Mines | Build established: Mutant 2154 | -10/Mines | Identified exit to Materials 2296 | -10/Mines | Deemed a non-threat by the Exiles lab entrance 2296 | -10/Mines | Discovered new exit (range 5) 2374 | -10/Mines | Build established: Scavenger-Mutant 2536 | -10/Mines | Found a Scrap Suit stashed away for nefarious purposes 2572 | -10/Mines | Learned 2 Materials zone layouts 2833 | -10/Mines | Entered Exiles 2833 | -10/Exiles | Found Exiles lab destroyed 2862 | -10/Exiles | Discovered new exit (range 15) 3052 | -10/Exiles | Learned location of Zion (-7) 3444 | -10/Exiles | Opened EX-Vault 3454 | -10/Exiles | Found AWS/Gauss 3962 | -10/Exiles | Build established: Commander-Mutant 4337 | -10/Exiles | Discovered new exit (range 14) 4377 | -10/Exiles | Entered Mines 4377 | -9/Mines | Accompanied by 5 allies 4750 | -9/Mines | Build established: Scavenger-Mutant 4771 | -9/Mines | Assembled infested the area 5293 | -9/Mines | Core integrity fell below 20% 5316 | -9/Mines | Lost 3 allies 5361 | -9/Mines | Discovered new exit (range 8) 5631 | -9/Mines | Discovered new exit (range 11) 5756 | -9/Mines | Entered Materials 5756 | -8/Materials | Evolved 4 slots: Propulsion x2, Utility x2 5757 | -8/Materials | Identified exit to Factory 6073 | -8/Materials | Lost 4 parts (1p1n1u1w) 6359 | -8/Materials | Repaired Grenade Launcher 6568 | -8/Materials | Repaired Titanium Leg 6986 | -8/Materials | Learned 4 Factory zone layouts 7034 | -8/Materials | Learned 8 Factory zone layouts 7101 | -8/Materials | Learned Factory non-interactive machine intel 7121 | -8/Materials | Learned location of Storage (-7) 7152 | -8/Materials | Learned 2 Lower Caves zone layouts 7193 | -8/Materials | Learned Factory emergency access door positions 8111 | -8/Materials | Central database locked down 8175 | -8/Materials | Discovered exit to Factory (range 12) 8490 | -8/Materials | Discovered exit to Factory (range 12) 8810 | -8/Materials | Core integrity fell below 50% 9182 | -8/Materials | Repaired Broken Mak. Salvage Targeting Computer 9415 | -8/Materials | Identified exit to Garrison 9415 | -8/Materials | Entered Garrison 9583 | -8/Garrison | Triggered checkpoint 9745 | -8/Garrison | Rescued a captive Derelict 9745 | -8/Garrison | Rescued a captive Derelict 9764 | -8/Garrison | Garrison Relay disabled 9929 | -8/Garrison | Triggered checkpoint 10051 | -8/Garrison | Discovered new exit (range 10) 10249 | -8/Garrison | Triggered checkpoint 10841 | -8/Garrison | Triggered checkpoint 10998 | -8/Garrison | Garrison Relay disabled 11015 | -8/Garrison | Triggered checkpoint 11049 | -8/Garrison | Discovered new exit (range 3) 11716 | -8/Garrison | Discovered new exit (range 10) 11781 | -8/Garrison | Garrison Relay disabled 12007 | -8/Garrison | Installed Relay Interface Framework 12163 | -8/Garrison | Entered Materials 12197 | -8/Materials | Identified exit to Garrison 12236 | -8/Materials | Entered Garrison 12392 | -8/Garrison | Garrison Relay disabled 12450 | -8/Garrison | Triggered checkpoint 12452 | -8/Garrison | Triggered checkpoint 12480 | -8/Garrison | Destroyed 9 combat bots 12569 | -8/Garrison | Triggered checkpoint 12608 | -8/Garrison | Destroyed 7 combat bots 12682 | -8/Garrison | Triggered checkpoint 12706 | -8/Garrison | Garrison Relay disabled 12802 | -8/Garrison | Triggered checkpoint 12830 | -8/Garrison | Discovered exit to Factory (range 15) 13261 | -8/Garrison | Build established: Mutant 13486 | -8/Garrison | Discovered exit to Factory (range 3) 13563 | -8/Garrison | Garrison Relay disabled 13588 | -8/Garrison | Triggered checkpoint 13741 | -8/Garrison | Triggered checkpoint 13753 | -8/Garrison | Garrison Relay disabled 13786 | -8/Garrison | Garrison Relay disabled 13830 | -8/Garrison | Spotted B-75 Beast 13846 | -8/Garrison | Core integrity fell below 20% 13859 | -8/Garrison | Destroyed B-75 Beast 13865 | -8/Garrison | Lost 3 allies 13871 | -8/Garrison | Expanded RIF knowledge: Threat Obfuscation 14038 | -8/Garrison | Expanded RIF knowledge: Coupler Efficiency 14065 | -8/Garrison | Discovered exit to Factory (range 7) 14084 | -8/Garrison | Entered Factory 14084 | -7/Factory | Accompanied by 1 ally 14084 | -7/Factory | Evolved 2 slots: Propulsion x1, Utility x1 14085 | -7/Factory | Identified exit to Storage 14085 | -7/Factory | Identified exit to Lower Caves 14088 | -7/Factory | Loaded intel: 258 non-interactive machine locations 14215 | -7/Factory | Repaired Imp. Light Armor Plating 14369 | -7/Factory | Sucked down chute 14369 | -7/Factory | Entered Waste 14370 | -7/Waste | Met a frightened Derelict 14389 | -7/Waste | 1 allies followed down the chute 14399 | -7/Waste | Spotted C-40 Crusher 14403 | -7/Waste | Spotted C-40 Crusher 14444 | -7/Waste | Spotted C-40 Crusher 14447 | -7/Waste | Spotted C-40 Crusher 14463 | -7/Waste | Spotted C-40 Crusher 14467 | -7/Waste | Spotted C-40 Crusher 14511 | -7/Waste | Discovered new exit (range 12) 14682 | -7/Waste | Warlord forces began an assault 14803 | -7/Waste | Found Damper Plating 14819 | -7/Waste | Allies destroyed C-40 Crusher 14849 | -7/Waste | Lost 9 allies 14854 | -7/Waste | Identified exit to Factory 15374 | -7/Waste | Entered Factory 15374 | -7/Factory | Accompanied by 7 allies 15379 | -7/Factory | Identified exit to DSF 15379 | -7/Factory | Entered DSF 15379 | -7/DSF | Accompanied by 7 allies 15416 | -7/DSF | Additional patrols routed to DSF 15485 | -7/DSF | Lost 5 allies 15511 | -7/DSF | Discovered new exit (range 15) 15615 | -7/DSF | Identified exit to Factory 15620 | -7/DSF | System corruption reached 10% 15633 | -7/DSF | Entered Factory 15633 | -6/Factory | Accompanied by 2 allies 15633 | -6/Factory | Evolved 2 slots: Power x1, Utility x1 15707 | -6/Factory | Build established: Scavenger-Mutant 15756 | -6/Factory | Fabricated Nova Cannon (x2) 16195 | -6/Factory | Fabricated Adv. Thermal Shield (x2) 16291 | -6/Factory | Repaired Lyr. Medium Armor Plating 16855 | -6/Factory | Sucked down chute 16855 | -6/Factory | Entered Waste 16866 | -6/Waste | Spotted C-40 Crusher 16866 | -6/Waste | Spotted C-40 Crusher 16926 | -6/Waste | Spotted C-40 Crusher 16930 | -6/Waste | Spotted C-40 Crusher 16932 | -6/Waste | Spotted C-40 Crusher 16976 | -6/Waste | Discovered new exit (range 16) 17012 | -6/Waste | Spotted C-40 Crusher 17029 | -6/Waste | Warlord forces began an assault 17055 | -6/Waste | Allies destroyed C-40 Crusher 17103 | -6/Waste | Allies destroyed C-40 Crusher 17119 | -6/Waste | Allies destroyed C-40 Crusher 17132 | -6/Waste | Lost 4 allies 17143 | -6/Waste | Allies destroyed C-40 Crusher 17146 | -6/Waste | Allies destroyed C-40 Crusher 17177 | -6/Waste | Lost 3 allies 17210 | -6/Waste | Identified exit to Factory 17243 | -6/Waste | Entered Factory 17243 | -6/Factory | Accompanied by 10 allies 17308 | -6/Factory | Repaired Gatling Laser 17632 | -6/Factory | Discovered new exit (range 7) 17638 | -6/Factory | Identified exit to Factory 17762 | -6/Factory | Lost 5 allies 18152 | -6/Factory | Identified exit to Garrison 18166 | -6/Factory | Entered Garrison 18183 | -6/Garrison | Expanded RIF knowledge: Code Merge 18318 | -6/Garrison | Triggered checkpoint 18360 | -6/Garrison | Triggered checkpoint 18406 | -6/Garrison | Garrison Relay disabled 18542 | -6/Garrison | Discovered exit to Factory (range 11) 18588 | -6/Garrison | Triggered checkpoint 18850 | -6/Garrison | Triggered checkpoint 18866 | -6/Garrison | Discovered exit to Factory (range 11) 18972 | -6/Garrison | Garrison Relay disabled 19322 | -6/Garrison | Triggered checkpoint 19374 | -6/Garrison | Triggered checkpoint 19419 | -6/Garrison | Garrison Relay disabled 19456 | -6/Garrison | Rescued a captive Derelict 19457 | -6/Garrison | Rescued a captive Derelict 19496 | -6/Garrison | Discovered exit to Factory (range 11) 19584 | -6/Garrison | Build established: Bothacker-Mutant 19646 | -6/Garrison | Triggered checkpoint 19696 | -6/Garrison | Triggered checkpoint 19756 | -6/Garrison | Garrison Relay disabled 19883 | -6/Garrison | Found Fusion Bomb Launcher 20090 | -6/Garrison | Entered Factory 20090 | -5/Factory | Accompanied by 2 allies 20090 | -5/Factory | Evolved 2 slots: Utility x2 20157 | -5/Factory | Identified exit to DSF 20159 | -5/Factory | Entered DSF 20159 | -5/DSF | Accompanied by 2 allies 20186 | -5/DSF | Additional patrols routed to DSF 20240 | -5/DSF | Discovered new exit (range 7) 20265 | -5/DSF | Sterilization system engaged 20268 | -5/DSF | Entered Factory 20268 | -4/Factory | Accompanied by 3 allies 20268 | -4/Factory | Evolved 2 slots: Propulsion x1, Utility x1 20448 | -4/Factory | Build established: Scavenger-Mutant 20536 | -4/Factory | Spotted B-86 Titan 20541 | -4/Factory | Assimilated Titan 7a with formatsys_high 20583 | -4/Factory | Lost 3 allies 20606 | -4/Factory | Destroyed 8 combat bots 20609 | -4/Factory | Lost 4 parts (3n1u) 20838 | -4/Factory | Fabricated Hvy. Armored Exoskeleton? 20971 | -4/Factory | Discovered new exit (range 20) 21016 | -4/Factory | Lost 4 parts (2n1u1w) 21176 | -4/Factory | Lost 4 parts (3n1u) 21268 | -4/Factory | First assault squad dispatched 21323 | -4/Factory | Repaired Flexi-carbon Leg+ 21332 | -4/Factory | Sucked down chute 21332 | -4/Factory | Entered Waste 21333 | -4/Waste | Met a frightened Derelict 21347 | -4/Waste | EMP discharged 21377 | -4/Waste | Spotted C-40 Crusher 21413 | -4/Waste | Spotted C-40 Crusher 21440 | -4/Waste | Spotted C-40 Crusher 21447 | -4/Waste | EMP discharged 21447 | -4/Waste | System corruption reached 10% 21454 | -4/Waste | Spotted C-40 Crusher 21484 | -4/Waste | Spotted C-40 Crusher 21488 | -4/Waste | Spotted C-40 Crusher 21511 | -4/Waste | Discovered new exit (range 13) 21538 | -4/Waste | Entered Factory 21712 | -4/Factory | Fabricated Enh. Biometal Leg? 21929 | -4/Factory | Discovered new exit (range 13) 22050 | -4/Factory | Identified exit to Research 22052 | -4/Factory | Entered Research 22052 | -3/Research | Evolved 2 slots: Utility x1, Weapon x1 22485 | -3/Research | Found Fusion Bomb Launcher 22587 | -3/Research | Found Prototype Device 22588 | -3/Research | Identified Exp. EM Disruption Field 22687 | -3/Research | Build established: Skirmisher 22852 | -3/Research | Found Prototype Processor 22852 | -3/Research | Identified Spectral Analyzer 23098 | -3/Research | Destroyed 7 combat bots 23159 | -3/Research | Found Gamma Bomb Array 23366 | -3/Research | Discovered new exit (range 11) 23378 | -3/Research | Identified exit to Quarantine 23381 | -3/Research | Entered Quarantine 23533 | -3/Quarantine | Build established: Gunner 23568 | -3/Quarantine | Cryocooling Duct disabled 23583 | -3/Quarantine | Ambient heat levels rising (+20) 23583 | -3/Quarantine | Non-combat units ordered to evacuate 23761 | -3/Quarantine | Found Alien Slashing Weapon 23765 | -3/Quarantine | Identified Sigix Broadsword 23990 | -3/Quarantine | Found Alien Artifact 23990 | -3/Quarantine | Identified Phase Redirector 24073 | -3/Quarantine | Build established: Assassin 24105 | -3/Quarantine | Found Alien Impact Weapon 24106 | -3/Quarantine | Identified Core Stripper 24432 | -3/Quarantine | Discovered new exit (range 22) 24471 | -3/Quarantine | Identified exit to Garrison 24674 | -3/Quarantine | Entered Garrison 24684 | -3/Garrison | Expanded RIF knowledge: Zone Cloak 24796 | -3/Garrison | Triggered checkpoint 24833 | -3/Garrison | Garrison Relay disabled 24972 | -3/Garrison | Spotted B-86 Titan 25012 | -3/Garrison | Destroyed B-86 Titan 25082 | -3/Garrison | Discovered new exit (range 63) 25082 | -3/Garrison | Discovered new exit (range 47) 25082 | -3/Garrison | Discovered new exit (range 51) 25102 | -3/Garrison | Triggered checkpoint 25110 | -3/Garrison | Triggered checkpoint 25200 | -3/Garrison | Garrison Relay disabled 25202 | -3/Garrison | Build established: Mutant 25230 | -3/Garrison | Garrison Relay disabled 25311 | -3/Garrison | Identified exit to Research 25312 | -3/Garrison | Entered Research 25312 | -2/Research | Evolved 2 slots: Utility x2 26128 | -2/Research | Fabricated Centrium Leg? 26312 | -2/Research | First assault squad dispatched 26447 | -2/Research | Destroyed 7 combat bots 26465 | -2/Research | System corruption reached 10% 26509 | -2/Research | Lost 6 parts (1p1n4u) 26568 | -2/Research | Destroyed 13 combat bots 26609 | -2/Research | Lost 10 parts (1p3n2u4w) 26628 | -2/Research | Destroyed 10 combat bots 26681 | -2/Research | Cargo convoy interrupted 26709 | -2/Research | Core integrity fell below 50% 26755 | -2/Research | Destroyed 8 combat bots 26761 | -2/Research | Lost 12 parts (1p4n2u5w) 26768 | -2/Research | Found Prototype Reactor 26768 | -2/Research | Identified Zero-point Reactor 26790 | -2/Research | Found Prototype Processor 26790 | -2/Research | Identified Exp. Terrain Scan Processor 26795 | -2/Research | Found Zero-point Reactor 26798 | -2/Research | Found Zero-point Reactor 26842 | -2/Research | Spotted B-90 Cyclops 27222 | -2/Research | Found Quantum Capacitor 27234 | -2/Research | Discovered new exit (range 24) 27457 | -2/Research | Entered Testing 27617 | -2/Testing | Found Prototype Energy Cannon 27617 | -2/Testing | Identified Disintegrator 27630 | -2/Testing | Repaired Adv. Force Field? 27702 | -2/Testing | Build established: Gladiator 27707 | -2/Testing | First assault squad dispatched 27780 | -2/Testing | Discovered new exit (range 8) 27842 | -2/Testing | System corruption reached 30% 27961 | -2/Testing | Spotted Fortress 27993 | -2/Testing | Core integrity fell below 20% 27997 | -2/Testing | Destroyed Fortress 28016 | -2/Testing | Found Prototype Reactor 28016 | -2/Testing | Identified Vortex Chain Reactor 28019 | -2/Testing | Found Prototype Device 28019 | -2/Testing | Identified Exp. EM Shield 28024 | -2/Testing | Found Prototype Protection 28024 | -2/Testing | Identified Centrium Heavy Armor Plating 28027 | -2/Testing | Found Prototype Device 28028 | -2/Testing | Identified Thermal Barrier 28031 | -2/Testing | Found Prototype Device 28031 | -2/Testing | Identified Exp. Force Field 28243 | -2/Testing | Entered Access 28243 | -1/Access | Evolved 2 slots: Propulsion x1, Weapon x1 28303 | -1/Access | Build established: Mutant 28727 | -1/Access | System corruption reached 10% 28787 | -1/Access | Destroyed 7 combat bots 28880 | -1/Access | Garrison activated, responded to threat 29103 | -1/Access | Energy Cycler disabled 29156 | -1/Access | System corruption reached 30% 29182 | -1/Access | Lost 4 parts (1p2n1u) 29356 | -1/Access | Lost 5 parts (1p1n1u2w) 29493 | -1/Access | First assault squad dispatched 29500 | -1/Access | Lost 11 parts (1p6n2u2w) 29506 | -1/Access | Destroyed 7 combat bots 29642 | -1/Access | Discovered new exit (range 9) 29651 | -1/Access | Entered Command 29651 | -1/Command | Spotted B-99 Colossus 29773 | -1/Command | Build established: Scavenger-Mutant 30006 | -1/Command | Spotted B-99 Colossus 30081 | -1/Command | Destroyed B-99 Colossus 30089 | -1/Command | Found Hvy. Insulated Plating 30236 | -1/Command | Found Prototype Ballistic Gun 30242 | -1/Command | Identified Multirail 30304 | -1/Command | Lost 6 parts (1p1n3u1w) 30409 | -1/Command | Spotted M Guard 30411 | -1/Command | Spotted Combat Programmer 30411 | -1/Command | Spotted Combat Programmer 30446 | -1/Command | Spotted M Guard 30449 | -1/Command | Lost 3 parts (1p1u1w) 30454 | -1/Command | Core integrity fell below 50% 30476 | -1/Command | Released all parts (3) 30479 | -1/Command | Core integrity fell below 20% 30479 | -1/Command | Destroyed by M Guard with Ragnarok Missile Launcher Last Messages --------------- 30472_ Knocked back. 30472_ K-01 Serf destroyed. 30473_ The unstable cave ceiling collapses. 30473_ EMDS Slug penetrates Wall. 30474_ System corrupted: Energy discharge (-158). 30474_ The unstable cave ceiling collapses. 30475_ Adv. Energy Well destroyed. 30475_ Lgt. Quantum Reactor destroyed. 30476_ The unstable cave ceiling collapses. 30476_ Imp. Thunder Leg destroyed. 30476_ Knocked back. 30476_ Myomer Leg destroyed. 30476_ Warlord AM-PH4 destroyed. 30476_ Released Adv. Targeting Computer. 30476_ Released Adv. Coolant Injector. 30476_ Released Hcp. Storage Unit. 30477_ The unstable cave ceiling collapses. 30477_ Linear Accelerator crushed. 30478_ The unstable cave ceiling collapses. 30478_ Knocked back. Map ----- +----------------------------------------------------+ | ?????????????????????????????????????????????????? | | ?????????????????????????????????????????????????? | | ?????????????????????????????????????????????????? | | ?????????????????????????????????????????????????? | | ?????????????????????????????????????????????????? | | ?????????????????????????????????????????????????? | | ?????????????????????????????????????????????????? | | ?????????????????????????????????????????????????? | | ?????????????????????????????????????????????????? | | ?????????????????????????????????????????????????? | | ?????????????????????????????????????????????????? | | ????????????????????????????????????????#####????? | | ?????????????????????????????????????? #????? | | ?????????????????????????????????????? #????? | | ??????????????????????????????????????? #????? | | ??????????????????????????????????????? #????? | | ??????????????????????????????????????? #????? | | ??????????????????????????????????????? #????? | | ??????????????????????????????????????? #????? | | ??????????##????####??#####?#####?????? #????? | | ??????????# ???# ??# ### #??????? ?????? | | ???????#### W ### W ### W # W #####+###"######## | | ?????? / | | ?????? % | | ????? ! | | ????? * @ | | ????? !* = % | | ?????????## ## W [ pY ###" | | ???????????????# % ][ Y = # " | | ???????????????## # ]!! ; %[ | | ????????????????### ##### !!! # #" | | ?????????????????##?????# #][ # % | | ????????????????????????### # | | ??????????????????????????# # ## | | ??????????????????????????# # ### | | ??????????????????????????## ### | | ???????????????????????????## ##=% | | ????????????????????????????######""#"%"% % ##### | | ????????????????????????????# " %" % " | | ???????????????????????????####" %%%% # | | ???????????????????????????# "% % # # | | ???????????????????????????## ##% # " | | ????????????????????????????#??# % ### ### | | ???????????????????????????????# #?# #?? | | ???????????????????????????????# #?# #??? | | ???????????????????????????????# #?# #??#+## | | ???????????????????????????????# #?# #??# #? | | ???????????????????????????????# #?# #??# #? | | ???????????????????????????????######+#### #### #? | | ???????????????????????????????????# #? | +----------------------------------------------------+ Best States ------------- Heat Dissipation 142 Coolant Potential 100 Energy Generation 61 Energy Capacity 1200 Matter Stores 550 Matter Capacity 550 Sight Range 24 Robot Scan Range 18 Terrain Scan Range 24 Terrain Scan Density 1010 Jamming Range 16 Additional Mass Support 16 Base Temperature (-) 100 EM Shielding 4 Corruption Containment 12 Armor Coverage 1200 Resistance: KI 20 Resistance: TH 50 Resistance: EM 75 Core Shielding 20 Weapon Shielding 90 Weapon Cycling 25 Phase Shifting 15 Evasion (%) 82 Targeting Accuracy 20 Melee Accuracy 6 Core Analysis 6 Particle Charging 25 Kinecelleration 40 Salvage Targeting 4 Offensive Hacking 20 Defensive Hacking 14 Relay Coupler Types 2 Relay Coupler Value 64 Authchip Count 2 Trap Extractor Capacity 4 Item Schematics ----------------- Hcp. Storage Unit | -10/Materials | Hacked Mak. Salvage Targeting Computer | -8/Materials | Scanalyzed Hrd. Heavy Armor Plating | -8/Materials | Scanalyzed Hacking Suite | -8/Materials | Scanalyzed Beamcaster | -8/Materials | Scanalyzed Titanium Leg | -8/Materials | Scanalyzed Mak. Transmission Jammer | -8/Materials | Scanalyzed Weapon Mount | -7/Factory | Scanalyzed Adv. Hacking Suite | -6/Factory | Hacked Enh. Biometal Leg | -4/Factory | Downloaded Centrium Leg | -3/Research | Hacked Huge Storage Unit | -2/Research | Scanalyzed Robot Schematics ------------------ M-13 Machinist | -10/Materials | Hacked Fabricated ------------ Nova Cannon | x2 | -6/Factory | Preloaded Adv. Thermal Shield | x2 | -6/Factory | Preloaded Hvy. Armored Exoskeleton | x1 | -4/Factory | Preloaded Enh. Biometal Leg | x1 | -4/Factory | Authchip Centrium Leg | x1 | -2/Research | Authchip Repaired ---------- Aluminum Leg | 67% | -10/Materials Grenade Launcher | 55% | -8/Materials Titanium Leg | 66% | -8/Materials Mak. Salvage Targeting Computer | 99% | -8/Materials | Broken Imp. Light Armor Plating | 57% | -7/Factory Lyr. Medium Armor Plating | 50% | -6/Factory Gatling Laser | 49% | -6/Factory Flexi-carbon Leg | 17% | -4/Factory Adv. Force Field | 14% | -2/Testing Studied --------- Titanium Leg | -8/Materials | Hacked VSS Leg | -7/Factory | Hacked Flexi-carbon Leg | -6/Factory | Hacked Gatling Laser | -6/Factory | Hacked Remote Datajack | -6/Factory | Hacked Hvy. Armored Exoskeleton | -3/Quarantine | Hacked Centrium Leg | -3/Quarantine | Hacked Com. HERF Cannon | -3/Quarantine | Hacked Alien Tech Used ----------------- Sigix Broadsword Phase Redirector Core Stripper Achievements -------------- None Challenges ------------ None Game ------ Seed QuantumLobotomyPit Manual? 0 Play Time 06:59:32 Cumulative 1087.7 hours Start 2025.11.20 @ 14:53:50 End 2025.11.21 @ 02:19:53 Sessions 3 Manual Loads 0 Difficulty Rogue Special Mode None Game No. 388 Rogue 383 Adventurer 4 Explorer 1 Win Type - Total 23 Types 13/3/1/2/0/1/0/0/2/1 Lore% 96 Gallery% 94 Achievement% 80 Wizard Run 0 Options --------- Layout 0 ASCII 0 Keyboard 0 Movement Numpad Keybinds 0 Fullscreen 2 Font 18/SmallcapsGlow Map View 76x50 Zoom Use 0% Tactical HUD 1 Map Filters NONE Filters NONE Steam 1 RUN: ecd63ac6-96fc-459b-a5f9-3b6232f387b8